Workbook

Sheet Cover_sheet
A2: Fire and rescue incident statistics
A3: England, year ending September 2023: data tables
A4: Table 0101
A5: Responsible Statistician: Helene Clark
A6: Email: Firestatistics@homeoffice.gov.uk
A7: Press enquiries: 0300 123 3535
A8: Published: 25 January 2024
A9: Next update: 25 April 2024
A10: Crown copyright © 2024
A11: Contents
A12: We’re always looking to improve the accessibility of our documents.
A13: If you find any problems, or have any feedback, relating to accessibility
A14: please email us at firestatistics@homeoffice.gov.uk

Sheet Contents
A1: Fire and rescue incident statistics
A2: Publication Date: 25 January 2024
A3: To access data tables, select the table number or tabs.
A4: Cover sheet
A5: Sheet | B5: Title | C5: Detail | D5: Period covered | E5: National Statistics?
A6: FIRE0101 | B6: Incidents attended by fire and rescue services by nation and population | C6: Shows the number of incidents attended by nation for financial years and the rate of incidents per million population. | D6: 1999/00 to 2022/23 | E6: Yes
A7: Data - incidents | B7: Raw incident data for FIRE0101 | C7: Provides the raw incident data for the main summary table FIRE0101 | D7: 1999/00 to 2022/23 | E7: Yes
A8: Data - population | B8: Population figures by country | C8: Shows the mid-year population estimate for each nation from the Office for National Statistics used in the incident rate calculations in the 'FIRE0101' worksheet. | D8: 1981/82 to 2022/23 | E8: Yes

Sheet Data - incidents
A1: COUNTRY | B1: FINANCIAL_YEAR | C1: TOTAL_INCIDENTS
A2: England | B2: 2010/11 | C2: 647360
A3: England | B3: 2011/12 | C3: 606941
A4: England | B4: 2012/13 | C4: 521324
A5: England | B5: 2013/14 | C5: 526895
A6: England | B6: 2014/15 | C6: 496277
A7: England | B7: 2015/16 | C7: 529716
A8: England | B8: 2016/17 | C8: 560775
A9: England | B9: 2017/18 | C9: 566217
A10: England | B10: 2018/19 | C10: 576594
A11: England | B11: 2019/20 | C11: 558033
A12: England | B12: 2020/21 | C12: 518321
A13: England | B13: 2021/22 | C13: 577187
A14: England | B14: 2022/23 | C14: 622497
A15: England | B15: 2023/24 | C15: 311268
A16: England | B16: 1999/00 | C16: 929573
A17: England | B17: 2000/01 | C17: 912741
A18: England | B18: 2001/02 | C18: 990793
A19: England | B19: 2002/03 | C19: 958142
A20: England | B20: 2003/04 | C20: 1016028
A21: England | B21: 2004/05 | C21: 861384
A22: England | B22: 2005/06 | C22: 843734
A23: England | B23: 2006/07 | C23: 854371
A24: England | B24: 2007/08 | C24: 791746
A25: England | B25: 2008/09 | C25: 717805
A26: England | B26: 2009/10 | C26: 680634
A27: Scotland | B27: 2009/10 | C27: 103820
A28: Scotland | B28: 2010/11 | C28: 101432
A29: Scotland | B29: 2011/12 | C29: 91566
A30: Scotland | B30: 2012/13 | C30: 83832
A31: Scotland | B31: 2013/14 | C31: 84882
A32: Scotland | B32: 2014/15 | C32: 85050
A33: Scotland | B33: 2015/16 | C33: 88869
A34: Scotland | B34: 2016/17 | C34: 91261
A35: Scotland | B35: 2017/18 | C35: 91901
A36: Scotland | B36: 2018/19 | C36: 92748
A37: Scotland | B37: 2019/20 | C37: 92075
A38: Scotland | B38: 2020/21 | C38: 85613
A39: Scotland | B39: 2021/22 | C39: 95734
A40: Scotland | B40: 2022/23 | C40: 99532
A41: Wales | B41: 2001/02 | C41: 63907
A42: Wales | B42: 2002/03 | C42: 62540
A43: Wales | B43: 2003/04 | C43: 63832
A44: Wales | B44: 2004/05 | C44: 52866
A45: Wales | B45: 2005/06 | C45: 52485
A46: Wales | B46: 2006/07 | C46: 56675
A47: Wales | B47: 2007/08 | C47: 55086
A48: Wales | B48: 2008/09 | C48: 49293
A49: Wales | B49: 2009/10 | C49: 46341
A50: Wales | B50: 2010/11 | C50: 46881
A51: Wales | B51: 2011/12 | C51: 39996
A52: Wales | B52: 2012/13 | C52: 36251
A53: Wales | B53: 2013/14 | C53: 38599
A54: Wales | B54: 2014/15 | C54: 36425
A55: Wales | B55: 2015/16 | C55: 36750
A56: Wales | B56: 2016/17 | C56: 37216
A57: Wales | B57: 2017/18 | C57: 36768
A58: Wales | B58: 2018/19 | C58: 36674
A59: Wales | B59: 2019/20 | C59: 34993
A60: Wales | B60: 2020/21 | C60: 32225
A61: Wales | B61: 2021/22 | C61: 34735
A62: Wales | B62: 2022/23 | C62: 37427

Sheet Data - population
A1: YEAR | B1: FINANCIAL_YEAR | C1: COUNTRY | D1: TOTAL_POPULATION
A2: 1981 | B2: 1981/82 | C2: England | D2: 46820800
A3: 1982 | B3: 1982/83 | C3: England | D3: 46777300
A4: 1983 | B4: 1983/84 | C4: England | D4: 46813700
A5: 1984 | B5: 1984/85 | C5: England | D5: 46912400
A6: 1985 | B6: 1985/86 | C6: England | D6: 47057400
A7: 1986 | B7: 1986/87 | C7: England | D7: 47187600
A8: 1987 | B8: 1987/88 | C8: England | D8: 47300400
A9: 1988 | B9: 1988/89 | C9: England | D9: 47412300
A10: 1989 | B10: 1989/90 | C10: England | D10: 47552700
A11: 1990 | B11: 1990/91 | C11: England | D11: 47699100
A12: 1991 | B12: 1991/92 | C12: England | D12: 47875000
A13: 1992 | B13: 1992/93 | C13: England | D13: 47998000
A14: 1993 | B14: 1993/94 | C14: England | D14: 48102300
A15: 1994 | B15: 1994/95 | C15: England | D15: 48228800
A16: 1995 | B16: 1995/96 | C16: England | D16: 48383500
A17: 1996 | B17: 1996/97 | C17: England | D17: 48519100
A18: 1997 | B18: 1997/98 | C18: England | D18: 48664800
A19: 1998 | B19: 1998/99 | C19: England | D19: 48820600
A20: 1999 | B20: 1999/00 | C20: England | D20: 49032900
A21: 2000 | B21: 2000/01 | C21: England | D21: 49233300
A22: 2001 | B22: 2001/02 | C22: England | D22: 49449700
A23: 2002 | B23: 2002/03 | C23: England | D23: 49679300
A24: 2003 | B24: 2003/04 | C24: England | D24: 49925500
A25: 2004 | B25: 2004/05 | C25: England | D25: 50194600
A26: 2005 | B26: 2005/06 | C26: England | D26: 50606000
A27: 2006 | B27: 2006/07 | C27: England | D27: 50965200
A28: 2007 | B28: 2007/08 | C28: England | D28: 51381100
A29: 2008 | B29: 2008/09 | C29: England | D29: 51815900
A30: 2009 | B30: 2009/10 | C30: England | D30: 52196400
A31: 2010 | B31: 2010/11 | C31: England | D31: 52642500
A32: 2011 | B32: 2011/12 | C32: England | D32: 53107200
A33: 2012 | B33: 2012/13 | C33: England | D33: 53506800
A34: 2013 | B34: 2013/14 | C34: England | D34: 53918700
A35: 2014 | B35: 2014/15 | C35: England | D35: 54370300
A36: 2015 | B36: 2015/16 | C36: England | D36: 54808700
A37: 2016 | B37: 2016/17 | C37: England | D37: 55289000
A38: 2017 | B38: 2017/18 | C38: England | D38: 55619500
A39: 2018 | B39: 2018/19 | C39: England | D39: 55924500
A40: 2019 | B40: 2019/20 | C40: England | D40: 56230100
A41: 2020 | B41: 2020/21 | C41: England | D41: 56326000
A42: 2021 | B42: 2021/22 | C42: England | D42: 56554900
A43: 2022 | B43: 2022/23 | C43: England | D43: 57106400
A44: 1981 | B44: 1981/82 | C44: Scotland | D44: 5180200
A45: 1982 | B45: 1982/83 | C45: Scotland | D45: 5164500
A46: 1983 | B46: 1983/84 | C46: Scotland | D46: 5148100
A47: 1984 | B47: 1984/85 | C47: Scotland | D47: 5138900
A48: 1985 | B48: 1985/86 | C48: Scotland | D48: 5127900
A49: 1986 | B49: 1986/87 | C49: Scotland | D49: 5111800
A50: 1987 | B50: 1987/88 | C50: Scotland | D50: 5099000
A51: 1988 | B51: 1988/89 | C51: Scotland | D51: 5077400
A52: 1989 | B52: 1989/90 | C52: Scotland | D52: 5078200
A53: 1990 | B53: 1990/91 | C53: Scotland | D53: 5081300
A54: 1991 | B54: 1991/92 | C54: Scotland | D54: 5083300
A55: 1992 | B55: 1992/93 | C55: Scotland | D55: 5085600
A56: 1993 | B56: 1993/94 | C56: Scotland | D56: 5092500
A57: 1994 | B57: 1994/95 | C57: Scotland | D57: 5102200
A58: 1995 | B58: 1995/96 | C58: Scotland | D58: 5103700
A59: 1996 | B59: 1996/97 | C59: Scotland | D59: 5092200
A60: 1997 | B60: 1997/98 | C60: Scotland | D60: 5083300
A61: 1998 | B61: 1998/99 | C61: Scotland | D61: 5077100
A62: 1999 | B62: 1999/00 | C62: Scotland | D62: 5072000
A63: 2000 | B63: 2000/01 | C63: Scotland | D63: 5062900
A64: 2001 | B64: 2001/02 | C64: Scotland | D64: 5064200
A65: 2002 | B65: 2002/03 | C65: Scotland | D65: 5066000
A66: 2003 | B66: 2003/04 | C66: Scotland | D66: 5068500
A67: 2004 | B67: 2004/05 | C67: Scotland | D67: 5084300
A68: 2005 | B68: 2005/06 | C68: Scotland | D68: 5110200
A69: 2006 | B69: 2006/07 | C69: Scotland | D69: 5133100
A70: 2007 | B70: 2007/08 | C70: Scotland | D70: 5170000
A71: 2008 | B71: 2008/09 | C71: Scotland | D71: 5202900
A72: 2009 | B72: 2009/10 | C72: Scotland | D72: 5231900
A73: 2010 | B73: 2010/11 | C73: Scotland | D73: 5262200
A74: 2011 | B74: 2011/12 | C74: Scotland | D74: 5299900
A75: 2012 | B75: 2012/13 | C75: Scotland | D75: 5313600
A76: 2013 | B76: 2013/14 | C76: Scotland | D76: 5327700
A77: 2014 | B77: 2014/15 | C77: Scotland | D77: 5347600
A78: 2015 | B78: 2015/16 | C78: Scotland | D78: 5373000
A79: 2016 | B79: 2016/17 | C79: Scotland | D79: 5404700
A80: 2017 | B80: 2017/18 | C80: Scotland | D80: 5424800
A81: 2018 | B81: 2018/19 | C81: Scotland | D81: 5438100
A82: 2019 | B82: 2019/20 | C82: Scotland | D82: 5463300
A83: 2020 | B83: 2020/21 | C83: Scotland | D83: 5466000
A84: 2021 | B84: 2021/22 | C84: Scotland | D84: 5479900
A85: 2022 | B85: 2022/23 | C85: Scotland | D85: 5436600
A86: 1981 | B86: 1981/82 | C86: Wales | D86: 2813500
A87: 1982 | B87: 1982/83 | C87: Wales | D87: 2804300
A88: 1983 | B88: 1983/84 | C88: Wales | D88: 2803300
A89: 1984 | B89: 1984/85 | C89: Wales | D89: 2800700
A90: 1985 | B90: 1985/86 | C90: Wales | D90: 2803400
A91: 1986 | B91: 1986/87 | C91: Wales | D91: 2810900
A92: 1987 | B92: 1987/88 | C92: Wales | D92: 2822600
A93: 1988 | B93: 1988/89 | C93: Wales | D93: 2841200
A94: 1989 | B94: 1989/90 | C94: Wales | D94: 2855200
A95: 1990 | B95: 1990/91 | C95: Wales | D95: 2861500
A96: 1991 | B96: 1991/92 | C96: Wales | D96: 2873000
A97: 1992 | B97: 1992/93 | C97: Wales | D97: 2877700
A98: 1993 | B98: 1993/94 | C98: Wales | D98: 2883600
A99: 1994 | B99: 1994/95 | C99: Wales | D99: 2887400
A100: 1995 | B100: 1995/96 | C100: Wales | D100: 2888500
A101: 1996 | B101: 1996/97 | C101: Wales | D101: 2891300
A102: 1997 | B102: 1997/98 | C102: Wales | D102: 2894900
A103: 1998 | B103: 1998/99 | C103: Wales | D103: 2899500
A104: 1999 | B104: 1999/00 | C104: Wales | D104: 2900600
A105: 2000 | B105: 2000/01 | C105: Wales | D105: 2906900
A106: 2001 | B106: 2001/02 | C106: Wales | D106: 2910200
A107: 2002 | B107: 2002/03 | C107: Wales | D107: 2922900
A108: 2003 | B108: 2003/04 | C108: Wales | D108: 2937700
A109: 2004 | B109: 2004/05 | C109: Wales | D109: 2957400
A110: 2005 | B110: 2005/06 | C110: Wales | D110: 2969300
A111: 2006 | B111: 2006/07 | C111: Wales | D111: 2985700
A112: 2007 | B112: 2007/08 | C112: Wales | D112: 3006300
A113: 2008 | B113: 2008/09 | C113: Wales | D113: 3025900
A114: 2009 | B114: 2009/10 | C114: Wales | D114: 3038900
A115: 2010 | B115: 2010/11 | C115: Wales | D115: 3050000
A116: 2011 | B116: 2011/12 | C116: Wales | D116: 3063800
A117: 2012 | B117: 2012/13 | C117: Wales | D117: 3070900
A118: 2013 | B118: 2013/14 | C118: Wales | D118: 3071100
A119: 2014 | B119: 2014/15 | C119: Wales | D119: 3073800
A120: 2015 | B120: 2015/16 | C120: Wales | D120: 3072700
A121: 2016 | B121: 2016/17 | C121: Wales | D121: 3077200
A122: 2017 | B122: 2017/18 | C122: Wales | D122: 3081400
A123: 2018 | B123: 2018/19 | C123: Wales | D123: 3083800
A124: 2019 | B124: 2019/20 | C124: Wales | D124: 3087700
A125: 2020 | B125: 2020/21 | C125: Wales | D125: 3104500
A126: 2021 | B126: 2021/22 | C126: Wales | D126: 3105600
A127: 2022 | B127: 2022/23 | C127: Wales | D127: 3131600
A128: 1981 | B128: 1981/82 | C128: Great Britain | D128: 54814500
A129: 1982 | B129: 1982/83 | C129: Great Britain | D129: 54746100
A130: 1983 | B130: 1983/84 | C130: Great Britain | D130: 54765100
A131: 1984 | B131: 1984/85 | C131: Great Britain | D131: 54852000
A132: 1985 | B132: 1985/86 | C132: Great Britain | D132: 54988700
A133: 1986 | B133: 1986/87 | C133: Great Britain | D133: 55110300
A134: 1987 | B134: 1987/88 | C134: Great Britain | D134: 55222000
A135: 1988 | B135: 1988/89 | C135: Great Britain | D135: 55330900
A136: 1989 | B136: 1989/90 | C136: Great Britain | D136: 55486100
A137: 1990 | B137: 1990/91 | C137: Great Britain | D137: 55641900
A138: 1991 | B138: 1991/92 | C138: Great Britain | D138: 55831300
A139: 1992 | B139: 1992/93 | C139: Great Britain | D139: 55961300
A140: 1993 | B140: 1993/94 | C140: Great Britain | D140: 56078400
A141: 1994 | B141: 1994/95 | C141: Great Britain | D141: 56218400
A142: 1995 | B142: 1995/96 | C142: Great Britain | D142: 56375700
A143: 1996 | B143: 1996/97 | C143: Great Britain | D143: 56502600
A144: 1997 | B144: 1997/98 | C144: Great Britain | D144: 56643000
A145: 1998 | B145: 1998/99 | C145: Great Britain | D145: 56797200
A146: 1999 | B146: 1999/00 | C146: Great Britain | D146: 57005500
A147: 2000 | B147: 2000/01 | C147: Great Britain | D147: 57203100
A148: 2001 | B148: 2001/02 | C148: Great Britain | D148: 57424200
A149: 2002 | B149: 2002/03 | C149: Great Britain | D149: 57668100
A150: 2003 | B150: 2003/04 | C150: Great Britain | D150: 57931700
A151: 2004 | B151: 2004/05 | C151: Great Britain | D151: 58236300
A152: 2005 | B152: 2005/06 | C152: Great Britain | D152: 58685500
A153: 2006 | B153: 2006/07 | C153: Great Britain | D153: 59084000
A154: 2007 | B154: 2007/08 | C154: Great Britain | D154: 59557400
A155: 2008 | B155: 2008/09 | C155: Great Britain | D155: 60044600
A156: 2009 | B156: 2009/10 | C156: Great Britain | D156: 60467200
A157: 2010 | B157: 2010/11 | C157: Great Britain | D157: 60954600
A158: 2011 | B158: 2011/12 | C158: Great Britain | D158: 61470800
A159: 2012 | B159: 2012/13 | C159: Great Britain | D159: 61891300
A160: 2013 | B160: 2013/14 | C160: Great Britain | D160: 62317400
A161: 2014 | B161: 2014/15 | C161: Great Britain | D161: 62791700
A162: 2015 | B162: 2015/16 | C162: Great Britain | D162: 63254400
A163: 2016 | B163: 2016/17 | C163: Great Britain | D163: 63770900
A164: 2017 | B164: 2017/18 | C164: Great Britain | D164: 64125700
A165: 2018 | B165: 2018/19 | C165: Great Britain | D165: 64446500
A166: 2019 | B166: 2019/20 | C166: Great Britain | D166: 64781100
A167: 2020 | B167: 2020/21 | C167: Great Britain | D167: 64896400
A168: 2021 | B168: 2021/22 | C168: Great Britain | D168: 65140400
A169: 2022 | B169: 2022/23 | C169: Great Britain | D169: 65674600

Sheet FIRE0101_working (hidden)
B2: Total incidents | F2: Total incidents per 1 million people | K2: Population
A3: Year | B3: England | C3: Scotland | D3: Wales | E3: Great Britain | F3: England | G3: Scotland | H3: Wales | I3: Great Britain | K3: England | L3: Scotland | M3: Wales | N3: Great Britain
A4: 1999/00 | B4: =IF(SUMPRODUCT(('Data - incidents'!$A$2:$A$952=B$3)*('Data - incidents'!$B$2:$B$952=$A4)*('Data - incidents'!$C$2:$C$952))=0,"..",SUMPRODUCT(('Data - incidents'!$A$2:$A$952=B$3)*('Data - incidents'!$B$2:$B$952=$A4)*('Data - incidents'!$C$2:$C$952))) -> 929573 | C4: =IF(SUMPRODUCT(('Data - incidents'!$A$2:$A$952=C$3)*('Data - incidents'!$B$2:$B$952=$A4)*('Data - incidents'!$C$2:$C$952))=0,"..",SUMPRODUCT(('Data - incidents'!$A$2:$A$952=C$3)*('Data - incidents'!$B$2:$B$952=$A4)*('Data - incidents'!$C$2:$C$952))) -> .. | D4: =IF(SUMPRODUCT(('Data - incidents'!$A$2:$A$952=D$3)*('Data - incidents'!$B$2:$B$952=$A4)*('Data - incidents'!$C$2:$C$952))=0,"..",SUMPRODUCT(('Data - incidents'!$A$2:$A$952=D$3)*('Data - incidents'!$B$2:$B$952=$A4)*('Data - incidents'!$C$2:$C$952))) -> .. | E4: =IF(OR(D4="..",C4="..",B4=".."),"..",SUM(B4:D4)) -> .. | F4: =IF(OR(B4="..",K4=".."),"..",(1000000*B4)/K4) -> 18958.14851 | G4: =IF(OR(C4="..",L4=".."),"..",(1000000*C4)/L4) -> .. | H4: =IF(OR(D4="..",M4=".."),"..",(1000000*D4)/M4) -> .. | I4: =IF(OR(E4="..",N4=".."),"..",(1000000*E4)/N4) -> .. | K4: =SUMPRODUCT(('Data - population'!$B$2:$B$1001=FIRE0101_working!$A4)*('Data - population'!$C$2:$C$1001=FIRE0101_working!F$3)*('Data - population'!$D$2:$D$1001)) -> 49032900 | L4: =SUMPRODUCT(('Data - population'!$B$2:$B$1001=FIRE0101_working!$A4)*('Data - population'!$C$2:$C$1001=FIRE0101_working!G$3)*('Data - population'!$D$2:$D$1001)) -> 5072000 | M4: =SUMPRODUCT(('Data - population'!$B$2:$B$1001=FIRE0101_working!$A4)*('Data - population'!$C$2:$C$1001=FIRE0101_working!H$3)*('Data - population'!$D$2:$D$1001)) -> 2900600 | N4: =SUMPRODUCT(('Data - population'!$B$2:$B$1001=FIRE0101_working!$A4)*('Data - population'!$C$2:$C$1001=FIRE0101_working!I$3)*('Data - population'!$D$2:$D$1001)) -> 57005500 | O4: =K4+L4+M4-N4 -> 0
A5: 2000/01 | B5: =IF(SUMPRODUCT(('Data - incidents'!$A$2:$A$952=B$3)*('Data - incidents'!$B$2:$B$952=$A5)*('Data - incidents'!$C$2:$C$952))=0,"..",SUMPRODUCT(('Data - incidents'!$A$2:$A$952=B$3)*('Data - incidents'!$B$2:$B$952=$A5)*('Data - incidents'!$C$2:$C$952))) -> 912741 | C5: =IF(SUMPRODUCT(('Data - incidents'!$A$2:$A$952=C$3)*('Data - incidents'!$B$2:$B$952=$A5)*('Data - incidents'!$C$2:$C$952))=0,"..",SUMPRODUCT(('Data - incidents'!$A$2:$A$952=C$3)*('Data - incidents'!$B$2:$B$952=$A5)*('Data - incidents'!$C$2:$C$952))) -> .. | D5: =IF(SUMPRODUCT(('Data - incidents'!$A$2:$A$952=D$3)*('Data - incidents'!$B$2:$B$952=$A5)*('Data - incidents'!$C$2:$C$952))=0,"..",SUMPRODUCT(('Data - incidents'!$A$2:$A$952=D$3)*('Data - incidents'!$B$2:$B$952=$A5)*('Data - incidents'!$C$2:$C$952))) -> .. | E5: =IF(OR(D5="..",C5="..",B5=".."),"..",SUM(B5:D5)) -> .. | F5: 18539.09854 | G5: .. | H5: .. | I5: .. | K5: =SUMPRODUCT(('Data - population'!$B$2:$B$1001=FIRE0101_working!$A5)*('Data - population'!$C$2:$C$1001=FIRE0101_working!F$3)*('Data - population'!$D$2:$D$1001)) -> 49233300 | L5: =SUMPRODUCT(('Data - population'!$B$2:$B$1001=FIRE0101_working!$A5)*('Data - population'!$C$2:$C$1001=FIRE0101_working!G$3)*('Data - population'!$D$2:$D$1001)) -> 5062900 | M5: =SUMPRODUCT(('Data - population'!$B$2:$B$1001=FIRE0101_working!$A5)*('Data - population'!$C$2:$C$1001=FIRE0101_working!H$3)*('Data - population'!$D$2:$D$1001)) -> 2906900 | N5: =SUMPRODUCT(('Data - population'!$B$2:$B$1001=FIRE0101_working!$A5)*('Data - population'!$C$2:$C$1001=FIRE0101_working!I$3)*('Data - population'!$D$2:$D$1001)) -> 57203100 | O5: =K5+L5+M5-N5 -> 0
A6: 2001/02 | B6: =IF(SUMPRODUCT(('Data - incidents'!$A$2:$A$952=B$3)*('Data - incidents'!$B$2:$B$952=$A6)*('Data - incidents'!$C$2:$C$952))=0,"..",SUMPRODUCT(('Data - incidents'!$A$2:$A$952=B$3)*('Data - incidents'!$B$2:$B$952=$A6)*('Data - incidents'!$C$2:$C$952))) -> 990793 | C6: =IF(SUMPRODUCT(('Data - incidents'!$A$2:$A$952=C$3)*('Data - incidents'!$B$2:$B$952=$A6)*('Data - incidents'!$C$2:$C$952))=0,"..",SUMPRODUCT(('Data - incidents'!$A$2:$A$952=C$3)*('Data - incidents'!$B$2:$B$952=$A6)*('Data - incidents'!$C$2:$C$952))) -> .. | D6: =IF(SUMPRODUCT(('Data - incidents'!$A$2:$A$952=D$3)*('Data - incidents'!$B$2:$B$952=$A6)*('Data - incidents'!$C$2:$C$952))=0,"..",SUMPRODUCT(('Data - incidents'!$A$2:$A$952=D$3)*('Data - incidents'!$B$2:$B$952=$A6)*('Data - incidents'!$C$2:$C$952))) -> 63907 | E6: .. | F6: 20036.3804 | G6: .. | H6: 21959.65913 | I6: .. | K6: =SUMPRODUCT(('Data - population'!$B$2:$B$1001=FIRE0101_working!$A6)*('Data - population'!$C$2:$C$1001=FIRE0101_working!F$3)*('Data - population'!$D$2:$D$1001)) -> 49449700 | L6: =SUMPRODUCT(('Data - population'!$B$2:$B$1001=FIRE0101_working!$A6)*('Data - population'!$C$2:$C$1001=FIRE0101_working!G$3)*('Data - population'!$D$2:$D$1001)) -> 5064200 | M6: =SUMPRODUCT(('Data - population'!$B$2:$B$1001=FIRE0101_working!$A6)*('Data - population'!$C$2:$C$1001=FIRE0101_working!H$3)*('Data - population'!$D$2:$D$1001)) -> 2910200 | N6: =SUMPRODUCT(('Data - population'!$B$2:$B$1001=FIRE0101_working!$A6)*('Data - population'!$C$2:$C$1001=FIRE0101_working!I$3)*('Data - population'!$D$2:$D$1001)) -> 57424200 | O6: -100
A7: 2002/03 | B7: =IF(SUMPRODUCT(('Data - incidents'!$A$2:$A$952=B$3)*('Data - incidents'!$B$2:$B$952=$A7)*('Data - incidents'!$C$2:$C$952))=0,"..",SUMPRODUCT(('Data - incidents'!$A$2:$A$952=B$3)*('Data - incidents'!$B$2:$B$952=$A7)*('Data - incidents'!$C$2:$C$952))) -> 958142 | C7: =IF(SUMPRODUCT(('Data - incidents'!$A$2:$A$952=C$3)*('Data - incidents'!$B$2:$B$952=$A7)*('Data - incidents'!$C$2:$C$952))=0,"..",SUMPRODUCT(('Data - incidents'!$A$2:$A$952=C$3)*('Data - incidents'!$B$2:$B$952=$A7)*('Data - incidents'!$C$2:$C$952))) -> .. | D7: =IF(SUMPRODUCT(('Data - incidents'!$A$2:$A$952=D$3)*('Data - incidents'!$B$2:$B$952=$A7)*('Data - incidents'!$C$2:$C$952))=0,"..",SUMPRODUCT(('Data - incidents'!$A$2:$A$952=D$3)*('Data - incidents'!$B$2:$B$952=$A7)*('Data - incidents'!$C$2:$C$952))) -> 62540 | E7: .. | F7: 19286.54389 | G7: .. | H7: 21396.55821 | I7: .. | K7: =SUMPRODUCT(('Data - population'!$B$2:$B$1001=FIRE0101_working!$A7)*('Data - population'!$C$2:$C$1001=FIRE0101_working!F$3)*('Data - population'!$D$2:$D$1001)) -> 49679300 | L7: =SUMPRODUCT(('Data - population'!$B$2:$B$1001=FIRE0101_working!$A7)*('Data - population'!$C$2:$C$1001=FIRE0101_working!G$3)*('Data - population'!$D$2:$D$1001)) -> 5066000 | M7: =SUMPRODUCT(('Data - population'!$B$2:$B$1001=FIRE0101_working!$A7)*('Data - population'!$C$2:$C$1001=FIRE0101_working!H$3)*('Data - population'!$D$2:$D$1001)) -> 2922900 | N7: =SUMPRODUCT(('Data - population'!$B$2:$B$1001=FIRE0101_working!$A7)*('Data - population'!$C$2:$C$1001=FIRE0101_working!I$3)*('Data - population'!$D$2:$D$1001)) -> 57668100 | O7: 100
A8: 2003/04 | B8: =IF(SUMPRODUCT(('Data - incidents'!$A$2:$A$952=B$3)*('Data - incidents'!$B$2:$B$952=$A8)*('Data - incidents'!$C$2:$C$952))=0,"..",SUMPRODUCT(('Data - incidents'!$A$2:$A$952=B$3)*('Data - incidents'!$B$2:$B$952=$A8)*('Data - incidents'!$C$2:$C$952))) -> 1016028 | C8: =IF(SUMPRODUCT(('Data - incidents'!$A$2:$A$952=C$3)*('Data - incidents'!$B$2:$B$952=$A8)*('Data - incidents'!$C$2:$C$952))=0,"..",SUMPRODUCT(('Data - incidents'!$A$2:$A$952=C$3)*('Data - incidents'!$B$2:$B$952=$A8)*('Data - incidents'!$C$2:$C$952))) -> .. | D8: =IF(SUMPRODUCT(('Data - incidents'!$A$2:$A$952=D$3)*('Data - incidents'!$B$2:$B$952=$A8)*('Data - incidents'!$C$2:$C$952))=0,"..",SUMPRODUCT(('Data - incidents'!$A$2:$A$952=D$3)*('Data - incidents'!$B$2:$B$952=$A8)*('Data - incidents'!$C$2:$C$952))) -> 63832 | E8: .. | F8: 20350.88282 | G8: .. | H8: 21728.56316 | I8: .. | K8: =SUMPRODUCT(('Data - population'!$B$2:$B$1001=FIRE0101_working!$A8)*('Data - population'!$C$2:$C$1001=FIRE0101_working!F$3)*('Data - population'!$D$2:$D$1001)) -> 49925500 | L8: =SUMPRODUCT(('Data - population'!$B$2:$B$1001=FIRE0101_working!$A8)*('Data - population'!$C$2:$C$1001=FIRE0101_working!G$3)*('Data - population'!$D$2:$D$1001)) -> 5068500 | M8: =SUMPRODUCT(('Data - population'!$B$2:$B$1001=FIRE0101_working!$A8)*('Data - population'!$C$2:$C$1001=FIRE0101_working!H$3)*('Data - population'!$D$2:$D$1001)) -> 2937700 | N8: =SUMPRODUCT(('Data - population'!$B$2:$B$1001=FIRE0101_working!$A8)*('Data - population'!$C$2:$C$1001=FIRE0101_working!I$3)*('Data - population'!$D$2:$D$1001)) -> 57931700 | O8: 0
A9: 2004/05 | B9: =IF(SUMPRODUCT(('Data - incidents'!$A$2:$A$952=B$3)*('Data - incidents'!$B$2:$B$952=$A9)*('Data - incidents'!$C$2:$C$952))=0,"..",SUMPRODUCT(('Data - incidents'!$A$2:$A$952=B$3)*('Data - incidents'!$B$2:$B$952=$A9)*('Data - incidents'!$C$2:$C$952))) -> 861384 | C9: =IF(SUMPRODUCT(('Data - incidents'!$A$2:$A$952=C$3)*('Data - incidents'!$B$2:$B$952=$A9)*('Data - incidents'!$C$2:$C$952))=0,"..",SUMPRODUCT(('Data - incidents'!$A$2:$A$952=C$3)*('Data - incidents'!$B$2:$B$952=$A9)*('Data - incidents'!$C$2:$C$952))) -> .. | D9: =IF(SUMPRODUCT(('Data - incidents'!$A$2:$A$952=D$3)*('Data - incidents'!$B$2:$B$952=$A9)*('Data - incidents'!$C$2:$C$952))=0,"..",SUMPRODUCT(('Data - incidents'!$A$2:$A$952=D$3)*('Data - incidents'!$B$2:$B$952=$A9)*('Data - incidents'!$C$2:$C$952))) -> 52866 | E9: .. | F9: 17160.88982 | G9: .. | H9: 17875.83688 | I9: .. | K9: =SUMPRODUCT(('Data - population'!$B$2:$B$1001=FIRE0101_working!$A9)*('Data - population'!$C$2:$C$1001=FIRE0101_working!F$3)*('Data - population'!$D$2:$D$1001)) -> 50194600 | L9: =SUMPRODUCT(('Data - population'!$B$2:$B$1001=FIRE0101_working!$A9)*('Data - population'!$C$2:$C$1001=FIRE0101_working!G$3)*('Data - population'!$D$2:$D$1001)) -> 5084300 | M9: =SUMPRODUCT(('Data - population'!$B$2:$B$1001=FIRE0101_working!$A9)*('Data - population'!$C$2:$C$1001=FIRE0101_working!H$3)*('Data - population'!$D$2:$D$1001)) -> 2957400 | N9: =SUMPRODUCT(('Data - population'!$B$2:$B$1001=FIRE0101_working!$A9)*('Data - population'!$C$2:$C$1001=FIRE0101_working!I$3)*('Data - population'!$D$2:$D$1001)) -> 58236300 | O9: 0
A10: 2005/06 | B10: =IF(SUMPRODUCT(('Data - incidents'!$A$2:$A$952=B$3)*('Data - incidents'!$B$2:$B$952=$A10)*('Data - incidents'!$C$2:$C$952))=0,"..",SUMPRODUCT(('Data - incidents'!$A$2:$A$952=B$3)*('Data - incidents'!$B$2:$B$952=$A10)*('Data - incidents'!$C$2:$C$952))) -> 843734 | C10: =IF(SUMPRODUCT(('Data - incidents'!$A$2:$A$952=C$3)*('Data - incidents'!$B$2:$B$952=$A10)*('Data - incidents'!$C$2:$C$952))=0,"..",SUMPRODUCT(('Data - incidents'!$A$2:$A$952=C$3)*('Data - incidents'!$B$2:$B$952=$A10)*('Data - incidents'!$C$2:$C$952))) -> .. | D10: =IF(SUMPRODUCT(('Data - incidents'!$A$2:$A$952=D$3)*('Data - incidents'!$B$2:$B$952=$A10)*('Data - incidents'!$C$2:$C$952))=0,"..",SUMPRODUCT(('Data - incidents'!$A$2:$A$952=D$3)*('Data - incidents'!$B$2:$B$952=$A10)*('Data - incidents'!$C$2:$C$952))) -> 52485 | E10: .. | F10: 16672.60799 | G10: .. | H10: 17675.8832 | I10: .. | K10: =SUMPRODUCT(('Data - population'!$B$2:$B$1001=FIRE0101_working!$A10)*('Data - population'!$C$2:$C$1001=FIRE0101_working!F$3)*('Data - population'!$D$2:$D$1001)) -> 50606000 | L10: =SUMPRODUCT(('Data - population'!$B$2:$B$1001=FIRE0101_working!$A10)*('Data - population'!$C$2:$C$1001=FIRE0101_working!G$3)*('Data - population'!$D$2:$D$1001)) -> 5110200 | M10: =SUMPRODUCT(('Data - population'!$B$2:$B$1001=FIRE0101_working!$A10)*('Data - population'!$C$2:$C$1001=FIRE0101_working!H$3)*('Data - population'!$D$2:$D$1001)) -> 2969300 | N10: =SUMPRODUCT(('Data - population'!$B$2:$B$1001=FIRE0101_working!$A10)*('Data - population'!$C$2:$C$1001=FIRE0101_working!I$3)*('Data - population'!$D$2:$D$1001)) -> 58685500 | O10: 0
A11: 2006/07 | B11: =IF(SUMPRODUCT(('Data - incidents'!$A$2:$A$952=B$3)*('Data - incidents'!$B$2:$B$952=$A11)*('Data - incidents'!$C$2:$C$952))=0,"..",SUMPRODUCT(('Data - incidents'!$A$2:$A$952=B$3)*('Data - incidents'!$B$2:$B$952=$A11)*('Data - incidents'!$C$2:$C$952))) -> 854371 | C11: =IF(SUMPRODUCT(('Data - incidents'!$A$2:$A$952=C$3)*('Data - incidents'!$B$2:$B$952=$A11)*('Data - incidents'!$C$2:$C$952))=0,"..",SUMPRODUCT(('Data - incidents'!$A$2:$A$952=C$3)*('Data - incidents'!$B$2:$B$952=$A11)*('Data - incidents'!$C$2:$C$952))) -> .. | D11: =IF(SUMPRODUCT(('Data - incidents'!$A$2:$A$952=D$3)*('Data - incidents'!$B$2:$B$952=$A11)*('Data - incidents'!$C$2:$C$952))=0,"..",SUMPRODUCT(('Data - incidents'!$A$2:$A$952=D$3)*('Data - incidents'!$B$2:$B$952=$A11)*('Data - incidents'!$C$2:$C$952))) -> 56675 | E11: .. | F11: 16763.81139 | G11: .. | H11: 18982.14824 | I11: .. | K11: =SUMPRODUCT(('Data - population'!$B$2:$B$1001=FIRE0101_working!$A11)*('Data - population'!$C$2:$C$1001=FIRE0101_working!F$3)*('Data - population'!$D$2:$D$1001)) -> 50965200 | L11: =SUMPRODUCT(('Data - population'!$B$2:$B$1001=FIRE0101_working!$A11)*('Data - population'!$C$2:$C$1001=FIRE0101_working!G$3)*('Data - population'!$D$2:$D$1001)) -> 5133100 | M11: =SUMPRODUCT(('Data - population'!$B$2:$B$1001=FIRE0101_working!$A11)*('Data - population'!$C$2:$C$1001=FIRE0101_working!H$3)*('Data - population'!$D$2:$D$1001)) -> 2985700 | N11: =SUMPRODUCT(('Data - population'!$B$2:$B$1001=FIRE0101_working!$A11)*('Data - population'!$C$2:$C$1001=FIRE0101_working!I$3)*('Data - population'!$D$2:$D$1001)) -> 59084000 | O11: 0
A12: 2007/08 | B12: =IF(SUMPRODUCT(('Data - incidents'!$A$2:$A$952=B$3)*('Data - incidents'!$B$2:$B$952=$A12)*('Data - incidents'!$C$2:$C$952))=0,"..",SUMPRODUCT(('Data - incidents'!$A$2:$A$952=B$3)*('Data - incidents'!$B$2:$B$952=$A12)*('Data - incidents'!$C$2:$C$952))) -> 791746 | C12: =IF(SUMPRODUCT(('Data - incidents'!$A$2:$A$952=C$3)*('Data - incidents'!$B$2:$B$952=$A12)*('Data - incidents'!$C$2:$C$952))=0,"..",SUMPRODUCT(('Data - incidents'!$A$2:$A$952=C$3)*('Data - incidents'!$B$2:$B$952=$A12)*('Data - incidents'!$C$2:$C$952))) -> .. | D12: =IF(SUMPRODUCT(('Data - incidents'!$A$2:$A$952=D$3)*('Data - incidents'!$B$2:$B$952=$A12)*('Data - incidents'!$C$2:$C$952))=0,"..",SUMPRODUCT(('Data - incidents'!$A$2:$A$952=D$3)*('Data - incidents'!$B$2:$B$952=$A12)*('Data - incidents'!$C$2:$C$952))) -> 55086 | E12: .. | F12: 15409.28474 | G12: .. | H12: 18323.52061 | I12: .. | K12: =SUMPRODUCT(('Data - population'!$B$2:$B$1001=FIRE0101_working!$A12)*('Data - population'!$C$2:$C$1001=FIRE0101_working!F$3)*('Data - population'!$D$2:$D$1001)) -> 51381100 | L12: =SUMPRODUCT(('Data - population'!$B$2:$B$1001=FIRE0101_working!$A12)*('Data - population'!$C$2:$C$1001=FIRE0101_working!G$3)*('Data - population'!$D$2:$D$1001)) -> 5170000 | M12: =SUMPRODUCT(('Data - population'!$B$2:$B$1001=FIRE0101_working!$A12)*('Data - population'!$C$2:$C$1001=FIRE0101_working!H$3)*('Data - population'!$D$2:$D$1001)) -> 3006300 | N12: =SUMPRODUCT(('Data - population'!$B$2:$B$1001=FIRE0101_working!$A12)*('Data - population'!$C$2:$C$1001=FIRE0101_working!I$3)*('Data - population'!$D$2:$D$1001)) -> 59557400 | O12: 0
A13: 2008/09 | B13: =IF(SUMPRODUCT(('Data - incidents'!$A$2:$A$952=B$3)*('Data - incidents'!$B$2:$B$952=$A13)*('Data - incidents'!$C$2:$C$952))=0,"..",SUMPRODUCT(('Data - incidents'!$A$2:$A$952=B$3)*('Data - incidents'!$B$2:$B$952=$A13)*('Data - incidents'!$C$2:$C$952))) -> 717805 | C13: =IF(SUMPRODUCT(('Data - incidents'!$A$2:$A$952=C$3)*('Data - incidents'!$B$2:$B$952=$A13)*('Data - incidents'!$C$2:$C$952))=0,"..",SUMPRODUCT(('Data - incidents'!$A$2:$A$952=C$3)*('Data - incidents'!$B$2:$B$952=$A13)*('Data - incidents'!$C$2:$C$952))) -> .. | D13: =IF(SUMPRODUCT(('Data - incidents'!$A$2:$A$952=D$3)*('Data - incidents'!$B$2:$B$952=$A13)*('Data - incidents'!$C$2:$C$952))=0,"..",SUMPRODUCT(('Data - incidents'!$A$2:$A$952=D$3)*('Data - incidents'!$B$2:$B$952=$A13)*('Data - incidents'!$C$2:$C$952))) -> 49293 | E13: .. | F13: 13852.98721 | G13: .. | H13: 16290.35989 | I13: .. | K13: =SUMPRODUCT(('Data - population'!$B$2:$B$1001=FIRE0101_working!$A13)*('Data - population'!$C$2:$C$1001=FIRE0101_working!F$3)*('Data - population'!$D$2:$D$1001)) -> 51815900 | L13: =SUMPRODUCT(('Data - population'!$B$2:$B$1001=FIRE0101_working!$A13)*('Data - population'!$C$2:$C$1001=FIRE0101_working!G$3)*('Data - population'!$D$2:$D$1001)) -> 5202900 | M13: =SUMPRODUCT(('Data - population'!$B$2:$B$1001=FIRE0101_working!$A13)*('Data - population'!$C$2:$C$1001=FIRE0101_working!H$3)*('Data - population'!$D$2:$D$1001)) -> 3025900 | N13: =SUMPRODUCT(('Data - population'!$B$2:$B$1001=FIRE0101_working!$A13)*('Data - population'!$C$2:$C$1001=FIRE0101_working!I$3)*('Data - population'!$D$2:$D$1001)) -> 60044600 | O13: 100
A14: 2009/10 | B14: =IF(SUMPRODUCT(('Data - incidents'!$A$2:$A$952=B$3)*('Data - incidents'!$B$2:$B$952=$A14)*('Data - incidents'!$C$2:$C$952))=0,"..",SUMPRODUCT(('Data - incidents'!$A$2:$A$952=B$3)*('Data - incidents'!$B$2:$B$952=$A14)*('Data - incidents'!$C$2:$C$952))) -> 680634 | C14: =IF(SUMPRODUCT(('Data - incidents'!$A$2:$A$952=C$3)*('Data - incidents'!$B$2:$B$952=$A14)*('Data - incidents'!$C$2:$C$952))=0,"..",SUMPRODUCT(('Data - incidents'!$A$2:$A$952=C$3)*('Data - incidents'!$B$2:$B$952=$A14)*('Data - incidents'!$C$2:$C$952))) -> 103820 | D14: =IF(SUMPRODUCT(('Data - incidents'!$A$2:$A$952=D$3)*('Data - incidents'!$B$2:$B$952=$A14)*('Data - incidents'!$C$2:$C$952))=0,"..",SUMPRODUCT(('Data - incidents'!$A$2:$A$952=D$3)*('Data - incidents'!$B$2:$B$952=$A14)*('Data - incidents'!$C$2:$C$952))) -> 46341 | E14: 830795 | F14: =IF(OR(B14="..",K14=".."),"..",(1000000*B14)/K14) -> 13039.86482 | G14: 19843.65145 | H14: 15249.26783 | I14: 13739.59767 | K14: =SUMPRODUCT(('Data - population'!$B$2:$B$1001=FIRE0101_working!$A14)*('Data - population'!$C$2:$C$1001=FIRE0101_working!F$3)*('Data - population'!$D$2:$D$1001)) -> 52196400 | L14: =SUMPRODUCT(('Data - population'!$B$2:$B$1001=FIRE0101_working!$A14)*('Data - population'!$C$2:$C$1001=FIRE0101_working!G$3)*('Data - population'!$D$2:$D$1001)) -> 5231900 | M14: =SUMPRODUCT(('Data - population'!$B$2:$B$1001=FIRE0101_working!$A14)*('Data - population'!$C$2:$C$1001=FIRE0101_working!H$3)*('Data - population'!$D$2:$D$1001)) -> 3038900 | N14: =SUMPRODUCT(('Data - population'!$B$2:$B$1001=FIRE0101_working!$A14)*('Data - population'!$C$2:$C$1001=FIRE0101_working!I$3)*('Data - population'!$D$2:$D$1001)) -> 60467200 | O14: 0
A15: 2010/11 | B15: =IF(SUMPRODUCT(('Data - incidents'!$A$2:$A$952=B$3)*('Data - incidents'!$B$2:$B$952=$A15)*('Data - incidents'!$C$2:$C$952))=0,"..",SUMPRODUCT(('Data - incidents'!$A$2:$A$952=B$3)*('Data - incidents'!$B$2:$B$952=$A15)*('Data - incidents'!$C$2:$C$952))) -> 647360 | C15: =IF(SUMPRODUCT(('Data - incidents'!$A$2:$A$952=C$3)*('Data - incidents'!$B$2:$B$952=$A15)*('Data - incidents'!$C$2:$C$952))=0,"..",SUMPRODUCT(('Data - incidents'!$A$2:$A$952=C$3)*('Data - incidents'!$B$2:$B$952=$A15)*('Data - incidents'!$C$2:$C$952))) -> 101432 | D15: =IF(SUMPRODUCT(('Data - incidents'!$A$2:$A$952=D$3)*('Data - incidents'!$B$2:$B$952=$A15)*('Data - incidents'!$C$2:$C$952))=0,"..",SUMPRODUCT(('Data - incidents'!$A$2:$A$952=D$3)*('Data - incidents'!$B$2:$B$952=$A15)*('Data - incidents'!$C$2:$C$952))) -> 46881 | E15: 795673 | F15: =IF(OR(B15="..",K15=".."),"..",(1000000*B15)/K15) -> 12297.28831 | G15: 19275.58816 | H15: 15370.81967 | I15: 13053.53493 | K15: =SUMPRODUCT(('Data - population'!$B$2:$B$1001=FIRE0101_working!$A15)*('Data - population'!$C$2:$C$1001=FIRE0101_working!F$3)*('Data - population'!$D$2:$D$1001)) -> 52642500 | L15: =SUMPRODUCT(('Data - population'!$B$2:$B$1001=FIRE0101_working!$A15)*('Data - population'!$C$2:$C$1001=FIRE0101_working!G$3)*('Data - population'!$D$2:$D$1001)) -> 5262200 | M15: =SUMPRODUCT(('Data - population'!$B$2:$B$1001=FIRE0101_working!$A15)*('Data - population'!$C$2:$C$1001=FIRE0101_working!H$3)*('Data - population'!$D$2:$D$1001)) -> 3050000 | N15: =SUMPRODUCT(('Data - population'!$B$2:$B$1001=FIRE0101_working!$A15)*('Data - population'!$C$2:$C$1001=FIRE0101_working!I$3)*('Data - population'!$D$2:$D$1001)) -> 60954600 | O15: 100
A16: 2011/12 | B16: =IF(SUMPRODUCT(('Data - incidents'!$A$2:$A$952=B$3)*('Data - incidents'!$B$2:$B$952=$A16)*('Data - incidents'!$C$2:$C$952))=0,"..",SUMPRODUCT(('Data - incidents'!$A$2:$A$952=B$3)*('Data - incidents'!$B$2:$B$952=$A16)*('Data - incidents'!$C$2:$C$952))) -> 606941 | C16: =IF(SUMPRODUCT(('Data - incidents'!$A$2:$A$952=C$3)*('Data - incidents'!$B$2:$B$952=$A16)*('Data - incidents'!$C$2:$C$952))=0,"..",SUMPRODUCT(('Data - incidents'!$A$2:$A$952=C$3)*('Data - incidents'!$B$2:$B$952=$A16)*('Data - incidents'!$C$2:$C$952))) -> 91566 | D16: =IF(SUMPRODUCT(('Data - incidents'!$A$2:$A$952=D$3)*('Data - incidents'!$B$2:$B$952=$A16)*('Data - incidents'!$C$2:$C$952))=0,"..",SUMPRODUCT(('Data - incidents'!$A$2:$A$952=D$3)*('Data - incidents'!$B$2:$B$952=$A16)*('Data - incidents'!$C$2:$C$952))) -> 39996 | E16: 738503 | F16: 11428.60102 | G16: =IF(OR(C16="..",L16=".."),"..",(1000000*C16)/L16) -> 17276.92975 | H16: 13054.37692 | I16: 12013.88301 | K16: =SUMPRODUCT(('Data - population'!$B$2:$B$1001=FIRE0101_working!$A16)*('Data - population'!$C$2:$C$1001=FIRE0101_working!F$3)*('Data - population'!$D$2:$D$1001)) -> 53107200 | L16: =SUMPRODUCT(('Data - population'!$B$2:$B$1001=FIRE0101_working!$A16)*('Data - population'!$C$2:$C$1001=FIRE0101_working!G$3)*('Data - population'!$D$2:$D$1001)) -> 5299900 | M16: =SUMPRODUCT(('Data - population'!$B$2:$B$1001=FIRE0101_working!$A16)*('Data - population'!$C$2:$C$1001=FIRE0101_working!H$3)*('Data - population'!$D$2:$D$1001)) -> 3063800 | N16: =SUMPRODUCT(('Data - population'!$B$2:$B$1001=FIRE0101_working!$A16)*('Data - population'!$C$2:$C$1001=FIRE0101_working!I$3)*('Data - population'!$D$2:$D$1001)) -> 61470800 | O16: 100
A17: 2012/13 | B17: =IF(SUMPRODUCT(('Data - incidents'!$A$2:$A$952=B$3)*('Data - incidents'!$B$2:$B$952=$A17)*('Data - incidents'!$C$2:$C$952))=0,"..",SUMPRODUCT(('Data - incidents'!$A$2:$A$952=B$3)*('Data - incidents'!$B$2:$B$952=$A17)*('Data - incidents'!$C$2:$C$952))) -> 521324 | C17: =IF(SUMPRODUCT(('Data - incidents'!$A$2:$A$952=C$3)*('Data - incidents'!$B$2:$B$952=$A17)*('Data - incidents'!$C$2:$C$952))=0,"..",SUMPRODUCT(('Data - incidents'!$A$2:$A$952=C$3)*('Data - incidents'!$B$2:$B$952=$A17)*('Data - incidents'!$C$2:$C$952))) -> 83832 | D17: =IF(SUMPRODUCT(('Data - incidents'!$A$2:$A$952=D$3)*('Data - incidents'!$B$2:$B$952=$A17)*('Data - incidents'!$C$2:$C$952))=0,"..",SUMPRODUCT(('Data - incidents'!$A$2:$A$952=D$3)*('Data - incidents'!$B$2:$B$952=$A17)*('Data - incidents'!$C$2:$C$952))) -> 36251 | E17: 641407 | F17: 9743.135452 | G17: 15776.87444 | H17: =IF(OR(D17="..",M17=".."),"..",(1000000*D17)/M17) -> 11804.68267 | I17: 10363.44365 | K17: =SUMPRODUCT(('Data - population'!$B$2:$B$1001=FIRE0101_working!$A17)*('Data - population'!$C$2:$C$1001=FIRE0101_working!F$3)*('Data - population'!$D$2:$D$1001)) -> 53506800 | L17: =SUMPRODUCT(('Data - population'!$B$2:$B$1001=FIRE0101_working!$A17)*('Data - population'!$C$2:$C$1001=FIRE0101_working!G$3)*('Data - population'!$D$2:$D$1001)) -> 5313600 | M17: =SUMPRODUCT(('Data - population'!$B$2:$B$1001=FIRE0101_working!$A17)*('Data - population'!$C$2:$C$1001=FIRE0101_working!H$3)*('Data - population'!$D$2:$D$1001)) -> 3070900 | N17: =SUMPRODUCT(('Data - population'!$B$2:$B$1001=FIRE0101_working!$A17)*('Data - population'!$C$2:$C$1001=FIRE0101_working!I$3)*('Data - population'!$D$2:$D$1001)) -> 61891300 | O17: 0
A18: 2013/14 | B18: =IF(SUMPRODUCT(('Data - incidents'!$A$2:$A$952=B$3)*('Data - incidents'!$B$2:$B$952=$A18)*('Data - incidents'!$C$2:$C$952))=0,"..",SUMPRODUCT(('Data - incidents'!$A$2:$A$952=B$3)*('Data - incidents'!$B$2:$B$952=$A18)*('Data - incidents'!$C$2:$C$952))) -> 526895 | C18: =IF(SUMPRODUCT(('Data - incidents'!$A$2:$A$952=C$3)*('Data - incidents'!$B$2:$B$952=$A18)*('Data - incidents'!$C$2:$C$952))=0,"..",SUMPRODUCT(('Data - incidents'!$A$2:$A$952=C$3)*('Data - incidents'!$B$2:$B$952=$A18)*('Data - incidents'!$C$2:$C$952))) -> 84882 | D18: =IF(SUMPRODUCT(('Data - incidents'!$A$2:$A$952=D$3)*('Data - incidents'!$B$2:$B$952=$A18)*('Data - incidents'!$C$2:$C$952))=0,"..",SUMPRODUCT(('Data - incidents'!$A$2:$A$952=D$3)*('Data - incidents'!$B$2:$B$952=$A18)*('Data - incidents'!$C$2:$C$952))) -> 38599 | E18: 650376 | F18: 9772.027145 | G18: 15932.20339 | H18: 12568.46081 | I18: =IF(OR(E18="..",N18=".."),"..",(1000000*E18)/N18) -> 10436.5073 | K18: =SUMPRODUCT(('Data - population'!$B$2:$B$1001=FIRE0101_working!$A18)*('Data - population'!$C$2:$C$1001=FIRE0101_working!F$3)*('Data - population'!$D$2:$D$1001)) -> 53918700 | L18: =SUMPRODUCT(('Data - population'!$B$2:$B$1001=FIRE0101_working!$A18)*('Data - population'!$C$2:$C$1001=FIRE0101_working!G$3)*('Data - population'!$D$2:$D$1001)) -> 5327700 | M18: =SUMPRODUCT(('Data - population'!$B$2:$B$1001=FIRE0101_working!$A18)*('Data - population'!$C$2:$C$1001=FIRE0101_working!H$3)*('Data - population'!$D$2:$D$1001)) -> 3071100 | N18: =SUMPRODUCT(('Data - population'!$B$2:$B$1001=FIRE0101_working!$A18)*('Data - population'!$C$2:$C$1001=FIRE0101_working!I$3)*('Data - population'!$D$2:$D$1001)) -> 62317400 | O18: 100
A19: 2014/15 | B19: =IF(SUMPRODUCT(('Data - incidents'!$A$2:$A$952=B$3)*('Data - incidents'!$B$2:$B$952=$A19)*('Data - incidents'!$C$2:$C$952))=0,"..",SUMPRODUCT(('Data - incidents'!$A$2:$A$952=B$3)*('Data - incidents'!$B$2:$B$952=$A19)*('Data - incidents'!$C$2:$C$952))) -> 496277 | C19: =IF(SUMPRODUCT(('Data - incidents'!$A$2:$A$952=C$3)*('Data - incidents'!$B$2:$B$952=$A19)*('Data - incidents'!$C$2:$C$952))=0,"..",SUMPRODUCT(('Data - incidents'!$A$2:$A$952=C$3)*('Data - incidents'!$B$2:$B$952=$A19)*('Data - incidents'!$C$2:$C$952))) -> 85050 | D19: =IF(SUMPRODUCT(('Data - incidents'!$A$2:$A$952=D$3)*('Data - incidents'!$B$2:$B$952=$A19)*('Data - incidents'!$C$2:$C$952))=0,"..",SUMPRODUCT(('Data - incidents'!$A$2:$A$952=D$3)*('Data - incidents'!$B$2:$B$952=$A19)*('Data - incidents'!$C$2:$C$952))) -> 36425 | E19: 617752 | F19: 9127.722304 | G19: 15904.33091 | H19: 11850.15291 | I19: 9838.115547 | K19: =SUMPRODUCT(('Data - population'!$B$2:$B$1001=FIRE0101_working!$A19)*('Data - population'!$C$2:$C$1001=FIRE0101_working!F$3)*('Data - population'!$D$2:$D$1001)) -> 54370300 | L19: =SUMPRODUCT(('Data - population'!$B$2:$B$1001=FIRE0101_working!$A19)*('Data - population'!$C$2:$C$1001=FIRE0101_working!G$3)*('Data - population'!$D$2:$D$1001)) -> 5347600 | M19: =SUMPRODUCT(('Data - population'!$B$2:$B$1001=FIRE0101_working!$A19)*('Data - population'!$C$2:$C$1001=FIRE0101_working!H$3)*('Data - population'!$D$2:$D$1001)) -> 3073800 | N19: =SUMPRODUCT(('Data - population'!$B$2:$B$1001=FIRE0101_working!$A19)*('Data - population'!$C$2:$C$1001=FIRE0101_working!I$3)*('Data - population'!$D$2:$D$1001)) -> 62791700 | O19: 0
A20: 2015/16 | B20: =IF(SUMPRODUCT(('Data - incidents'!$A$2:$A$952=B$3)*('Data - incidents'!$B$2:$B$952=$A20)*('Data - incidents'!$C$2:$C$952))=0,"..",SUMPRODUCT(('Data - incidents'!$A$2:$A$952=B$3)*('Data - incidents'!$B$2:$B$952=$A20)*('Data - incidents'!$C$2:$C$952))) -> 529716 | C20: =IF(SUMPRODUCT(('Data - incidents'!$A$2:$A$952=C$3)*('Data - incidents'!$B$2:$B$952=$A20)*('Data - incidents'!$C$2:$C$952))=0,"..",SUMPRODUCT(('Data - incidents'!$A$2:$A$952=C$3)*('Data - incidents'!$B$2:$B$952=$A20)*('Data - incidents'!$C$2:$C$952))) -> 88869 | D20: =IF(SUMPRODUCT(('Data - incidents'!$A$2:$A$952=D$3)*('Data - incidents'!$B$2:$B$952=$A20)*('Data - incidents'!$C$2:$C$952))=0,"..",SUMPRODUCT(('Data - incidents'!$A$2:$A$952=D$3)*('Data - incidents'!$B$2:$B$952=$A20)*('Data - incidents'!$C$2:$C$952))) -> 36750 | E20: 655335 | F20: 9664.815987 | G20: 16539.92183 | H20: 11960.16533 | I20: 10360.30695 | K20: =SUMPRODUCT(('Data - population'!$B$2:$B$1001=FIRE0101_working!$A20)*('Data - population'!$C$2:$C$1001=FIRE0101_working!F$3)*('Data - population'!$D$2:$D$1001)) -> 54808700 | L20: =SUMPRODUCT(('Data - population'!$B$2:$B$1001=FIRE0101_working!$A20)*('Data - population'!$C$2:$C$1001=FIRE0101_working!G$3)*('Data - population'!$D$2:$D$1001)) -> 5373000 | M20: =SUMPRODUCT(('Data - population'!$B$2:$B$1001=FIRE0101_working!$A20)*('Data - population'!$C$2:$C$1001=FIRE0101_working!H$3)*('Data - population'!$D$2:$D$1001)) -> 3072700 | N20: =SUMPRODUCT(('Data - population'!$B$2:$B$1001=FIRE0101_working!$A20)*('Data - population'!$C$2:$C$1001=FIRE0101_working!I$3)*('Data - population'!$D$2:$D$1001)) -> 63254400 | O20: 0
A21: 2016/17 | B21: =IF(SUMPRODUCT(('Data - incidents'!$A$2:$A$952=B$3)*('Data - incidents'!$B$2:$B$952=$A21)*('Data - incidents'!$C$2:$C$952))=0,"..",SUMPRODUCT(('Data - incidents'!$A$2:$A$952=B$3)*('Data - incidents'!$B$2:$B$952=$A21)*('Data - incidents'!$C$2:$C$952))) -> 560775 | C21: =IF(SUMPRODUCT(('Data - incidents'!$A$2:$A$952=C$3)*('Data - incidents'!$B$2:$B$952=$A21)*('Data - incidents'!$C$2:$C$952))=0,"..",SUMPRODUCT(('Data - incidents'!$A$2:$A$952=C$3)*('Data - incidents'!$B$2:$B$952=$A21)*('Data - incidents'!$C$2:$C$952))) -> 91261 | D21: =IF(SUMPRODUCT(('Data - incidents'!$A$2:$A$952=D$3)*('Data - incidents'!$B$2:$B$952=$A21)*('Data - incidents'!$C$2:$C$952))=0,"..",SUMPRODUCT(('Data - incidents'!$A$2:$A$952=D$3)*('Data - incidents'!$B$2:$B$952=$A21)*('Data - incidents'!$C$2:$C$952))) -> 37216 | E21: 689252 | F21: 10142.61426 | G21: 16885.48856 | H21: 12094.11153 | I21: 10808.25267 | K21: =SUMPRODUCT(('Data - population'!$B$2:$B$1001=FIRE0101_working!$A21)*('Data - population'!$C$2:$C$1001=FIRE0101_working!F$3)*('Data - population'!$D$2:$D$1001)) -> 55289000 | L21: =SUMPRODUCT(('Data - population'!$B$2:$B$1001=FIRE0101_working!$A21)*('Data - population'!$C$2:$C$1001=FIRE0101_working!G$3)*('Data - population'!$D$2:$D$1001)) -> 5404700 | M21: =SUMPRODUCT(('Data - population'!$B$2:$B$1001=FIRE0101_working!$A21)*('Data - population'!$C$2:$C$1001=FIRE0101_working!H$3)*('Data - population'!$D$2:$D$1001)) -> 3077200 | N21: =SUMPRODUCT(('Data - population'!$B$2:$B$1001=FIRE0101_working!$A21)*('Data - population'!$C$2:$C$1001=FIRE0101_working!I$3)*('Data - population'!$D$2:$D$1001)) -> 63770900 | O21: 0
A22: 2017/18 | B22: =IF(SUMPRODUCT(('Data - incidents'!$A$2:$A$952=B$3)*('Data - incidents'!$B$2:$B$952=$A22)*('Data - incidents'!$C$2:$C$952))=0,"..",SUMPRODUCT(('Data - incidents'!$A$2:$A$952=B$3)*('Data - incidents'!$B$2:$B$952=$A22)*('Data - incidents'!$C$2:$C$952))) -> 566217 | C22: =IF(SUMPRODUCT(('Data - incidents'!$A$2:$A$952=C$3)*('Data - incidents'!$B$2:$B$952=$A22)*('Data - incidents'!$C$2:$C$952))=0,"..",SUMPRODUCT(('Data - incidents'!$A$2:$A$952=C$3)*('Data - incidents'!$B$2:$B$952=$A22)*('Data - incidents'!$C$2:$C$952))) -> 91901 | D22: =IF(SUMPRODUCT(('Data - incidents'!$A$2:$A$952=D$3)*('Data - incidents'!$B$2:$B$952=$A22)*('Data - incidents'!$C$2:$C$952))=0,"..",SUMPRODUCT(('Data - incidents'!$A$2:$A$952=D$3)*('Data - incidents'!$B$2:$B$952=$A22)*('Data - incidents'!$C$2:$C$952))) -> 36768 | E22: 694886 | F22: 10180.1886 | G22: 16940.90105 | H22: 11932.23859 | I22: 10836.31056 | K22: =SUMPRODUCT(('Data - population'!$B$2:$B$1001=FIRE0101_working!$A22)*('Data - population'!$C$2:$C$1001=FIRE0101_working!F$3)*('Data - population'!$D$2:$D$1001)) -> 55619500 | L22: =SUMPRODUCT(('Data - population'!$B$2:$B$1001=FIRE0101_working!$A22)*('Data - population'!$C$2:$C$1001=FIRE0101_working!G$3)*('Data - population'!$D$2:$D$1001)) -> 5424800 | M22: =SUMPRODUCT(('Data - population'!$B$2:$B$1001=FIRE0101_working!$A22)*('Data - population'!$C$2:$C$1001=FIRE0101_working!H$3)*('Data - population'!$D$2:$D$1001)) -> 3081400 | N22: =SUMPRODUCT(('Data - population'!$B$2:$B$1001=FIRE0101_working!$A22)*('Data - population'!$C$2:$C$1001=FIRE0101_working!I$3)*('Data - population'!$D$2:$D$1001)) -> 64125700 | O22: 0
A23: 2018/19 | B23: =IF(SUMPRODUCT(('Data - incidents'!$A$2:$A$952=B$3)*('Data - incidents'!$B$2:$B$952=$A23)*('Data - incidents'!$C$2:$C$952))=0,"..",SUMPRODUCT(('Data - incidents'!$A$2:$A$952=B$3)*('Data - incidents'!$B$2:$B$952=$A23)*('Data - incidents'!$C$2:$C$952))) -> 576594 | C23: =IF(SUMPRODUCT(('Data - incidents'!$A$2:$A$952=C$3)*('Data - incidents'!$B$2:$B$952=$A23)*('Data - incidents'!$C$2:$C$952))=0,"..",SUMPRODUCT(('Data - incidents'!$A$2:$A$952=C$3)*('Data - incidents'!$B$2:$B$952=$A23)*('Data - incidents'!$C$2:$C$952))) -> 92748 | D23: =IF(SUMPRODUCT(('Data - incidents'!$A$2:$A$952=D$3)*('Data - incidents'!$B$2:$B$952=$A23)*('Data - incidents'!$C$2:$C$952))=0,"..",SUMPRODUCT(('Data - incidents'!$A$2:$A$952=D$3)*('Data - incidents'!$B$2:$B$952=$A23)*('Data - incidents'!$C$2:$C$952))) -> 36674 | E23: 706016 | F23: 10310.22182 | G23: 17055.22149 | H23: 11892.47033 | I23: 10955.07126 | K23: =SUMPRODUCT(('Data - population'!$B$2:$B$1001=FIRE0101_working!$A23)*('Data - population'!$C$2:$C$1001=FIRE0101_working!F$3)*('Data - population'!$D$2:$D$1001)) -> 55924500 | L23: =SUMPRODUCT(('Data - population'!$B$2:$B$1001=FIRE0101_working!$A23)*('Data - population'!$C$2:$C$1001=FIRE0101_working!G$3)*('Data - population'!$D$2:$D$1001)) -> 5438100 | M23: =SUMPRODUCT(('Data - population'!$B$2:$B$1001=FIRE0101_working!$A23)*('Data - population'!$C$2:$C$1001=FIRE0101_working!H$3)*('Data - population'!$D$2:$D$1001)) -> 3083800 | N23: =SUMPRODUCT(('Data - population'!$B$2:$B$1001=FIRE0101_working!$A23)*('Data - population'!$C$2:$C$1001=FIRE0101_working!I$3)*('Data - population'!$D$2:$D$1001)) -> 64446500 | O23: =K23+L23+M23-N23 -> -100
A24: 2019/20 | B24: =IF(SUMPRODUCT(('Data - incidents'!$A$2:$A$952=B$3)*('Data - incidents'!$B$2:$B$952=$A24)*('Data - incidents'!$C$2:$C$952))=0,"..",SUMPRODUCT(('Data - incidents'!$A$2:$A$952=B$3)*('Data - incidents'!$B$2:$B$952=$A24)*('Data - incidents'!$C$2:$C$952))) -> 558033 | C24: =IF(SUMPRODUCT(('Data - incidents'!$A$2:$A$952=C$3)*('Data - incidents'!$B$2:$B$952=$A24)*('Data - incidents'!$C$2:$C$952))=0,"..",SUMPRODUCT(('Data - incidents'!$A$2:$A$952=C$3)*('Data - incidents'!$B$2:$B$952=$A24)*('Data - incidents'!$C$2:$C$952))) -> 92075 | D24: =IF(SUMPRODUCT(('Data - incidents'!$A$2:$A$952=D$3)*('Data - incidents'!$B$2:$B$952=$A24)*('Data - incidents'!$C$2:$C$952))=0,"..",SUMPRODUCT(('Data - incidents'!$A$2:$A$952=D$3)*('Data - incidents'!$B$2:$B$952=$A24)*('Data - incidents'!$C$2:$C$952))) -> 34993 | E24: 685101 | F24: 9924.097592 | G24: 16853.36701 | H24: 11333.03106 | I24: 10575.63086 | K24: =SUMPRODUCT(('Data - population'!$B$2:$B$1001=FIRE0101_working!$A24)*('Data - population'!$C$2:$C$1001=FIRE0101_working!F$3)*('Data - population'!$D$2:$D$1001)) -> 56230100 | L24: =SUMPRODUCT(('Data - population'!$B$2:$B$1001=FIRE0101_working!$A24)*('Data - population'!$C$2:$C$1001=FIRE0101_working!G$3)*('Data - population'!$D$2:$D$1001)) -> 5463300 | M24: =SUMPRODUCT(('Data - population'!$B$2:$B$1001=FIRE0101_working!$A24)*('Data - population'!$C$2:$C$1001=FIRE0101_working!H$3)*('Data - population'!$D$2:$D$1001)) -> 3087700 | N24: =SUMPRODUCT(('Data - population'!$B$2:$B$1001=FIRE0101_working!$A24)*('Data - population'!$C$2:$C$1001=FIRE0101_working!I$3)*('Data - population'!$D$2:$D$1001)) -> 64781100 | O24: 0
A25: 2020/21 | B25: =IF(SUMPRODUCT(('Data - incidents'!$A$2:$A$952=B$3)*('Data - incidents'!$B$2:$B$952=$A25)*('Data - incidents'!$C$2:$C$952))=0,"..",SUMPRODUCT(('Data - incidents'!$A$2:$A$952=B$3)*('Data - incidents'!$B$2:$B$952=$A25)*('Data - incidents'!$C$2:$C$952))) -> 518321 | C25: =IF(SUMPRODUCT(('Data - incidents'!$A$2:$A$952=C$3)*('Data - incidents'!$B$2:$B$952=$A25)*('Data - incidents'!$C$2:$C$952))=0,"..",SUMPRODUCT(('Data - incidents'!$A$2:$A$952=C$3)*('Data - incidents'!$B$2:$B$952=$A25)*('Data - incidents'!$C$2:$C$952))) -> 85613 | D25: =IF(SUMPRODUCT(('Data - incidents'!$A$2:$A$952=D$3)*('Data - incidents'!$B$2:$B$952=$A25)*('Data - incidents'!$C$2:$C$952))=0,"..",SUMPRODUCT(('Data - incidents'!$A$2:$A$952=D$3)*('Data - incidents'!$B$2:$B$952=$A25)*('Data - incidents'!$C$2:$C$952))) -> 32225 | E25: 636159 | F25: =IF(OR(B25="..",K25=".."),"..",(1000000*B25)/K25) -> 9202.162412 | G25: 15662.82473 | H25: 10380.09341 | I25: 9802.685511 | K25: =SUMPRODUCT(('Data - population'!$B$2:$B$1001=FIRE0101_working!$A25)*('Data - population'!$C$2:$C$1001=FIRE0101_working!F$3)*('Data - population'!$D$2:$D$1001)) -> 56326000 | L25: =SUMPRODUCT(('Data - population'!$B$2:$B$1001=FIRE0101_working!$A25)*('Data - population'!$C$2:$C$1001=FIRE0101_working!G$3)*('Data - population'!$D$2:$D$1001)) -> 5466000 | M25: =SUMPRODUCT(('Data - population'!$B$2:$B$1001=FIRE0101_working!$A25)*('Data - population'!$C$2:$C$1001=FIRE0101_working!H$3)*('Data - population'!$D$2:$D$1001)) -> 3104500 | N25: =SUMPRODUCT(('Data - population'!$B$2:$B$1001=FIRE0101_working!$A25)*('Data - population'!$C$2:$C$1001=FIRE0101_working!I$3)*('Data - population'!$D$2:$D$1001)) -> 64896400 | O25: =K25+L25+M25-N25 -> 100
A26: 2021/22 | B26: =IF(SUMPRODUCT(('Data - incidents'!$A$2:$A$952=B$3)*('Data - incidents'!$B$2:$B$952=$A26)*('Data - incidents'!$C$2:$C$952))=0,"..",SUMPRODUCT(('Data - incidents'!$A$2:$A$952=B$3)*('Data - incidents'!$B$2:$B$952=$A26)*('Data - incidents'!$C$2:$C$952))) -> 577187 | C26: =IF(SUMPRODUCT(('Data - incidents'!$A$2:$A$952=C$3)*('Data - incidents'!$B$2:$B$952=$A26)*('Data - incidents'!$C$2:$C$952))=0,"..",SUMPRODUCT(('Data - incidents'!$A$2:$A$952=C$3)*('Data - incidents'!$B$2:$B$952=$A26)*('Data - incidents'!$C$2:$C$952))) -> 95734 | D26: =IF(SUMPRODUCT(('Data - incidents'!$A$2:$A$952=D$3)*('Data - incidents'!$B$2:$B$952=$A26)*('Data - incidents'!$C$2:$C$952))=0,"..",SUMPRODUCT(('Data - incidents'!$A$2:$A$952=D$3)*('Data - incidents'!$B$2:$B$952=$A26)*('Data - incidents'!$C$2:$C$952))) -> 34735 | E26: =IF(OR(D26="..",C26="..",B26=".."),"..",SUM(B26:D26)) -> 707656 | F26: =IF(OR(B26="..",K26=".."),"..",(1000000*B26)/K26) -> 10205.78235 | G26: =IF(OR(C26="..",L26=".."),"..",(1000000*C26)/L26) -> 17470.02683 | H26: =IF(OR(D26="..",M26=".."),"..",(1000000*D26)/M26) -> 11184.63421 | I26: =IF(OR(E26="..",N26=".."),"..",(1000000*E26)/N26) -> 10863.55012 | K26: =SUMPRODUCT(('Data - population'!$B$2:$B$1001=FIRE0101_working!$A26)*('Data - population'!$C$2:$C$1001=FIRE0101_working!F$3)*('Data - population'!$D$2:$D$1001)) -> 56554900 | L26: =SUMPRODUCT(('Data - population'!$B$2:$B$1001=FIRE0101_working!$A26)*('Data - population'!$C$2:$C$1001=FIRE0101_working!G$3)*('Data - population'!$D$2:$D$1001)) -> 5479900 | M26: =SUMPRODUCT(('Data - population'!$B$2:$B$1001=FIRE0101_working!$A26)*('Data - population'!$C$2:$C$1001=FIRE0101_working!H$3)*('Data - population'!$D$2:$D$1001)) -> 3105600 | N26: =SUMPRODUCT(('Data - population'!$B$2:$B$1001=FIRE0101_working!$A26)*('Data - population'!$C$2:$C$1001=FIRE0101_working!I$3)*('Data - population'!$D$2:$D$1001)) -> 65140400 | O26: =K26+L26+M26-N26 -> 0
A27: 2022/23 | B27: =IF(SUMPRODUCT(('Data - incidents'!$A$2:$A$952=B$3)*('Data - incidents'!$B$2:$B$952=$A27)*('Data - incidents'!$C$2:$C$952))=0,"..",SUMPRODUCT(('Data - incidents'!$A$2:$A$952=B$3)*('Data - incidents'!$B$2:$B$952=$A27)*('Data - incidents'!$C$2:$C$952))) -> 622497 | C27: =IF(SUMPRODUCT(('Data - incidents'!$A$2:$A$952=C$3)*('Data - incidents'!$B$2:$B$952=$A27)*('Data - incidents'!$C$2:$C$952))=0,"..",SUMPRODUCT(('Data - incidents'!$A$2:$A$952=C$3)*('Data - incidents'!$B$2:$B$952=$A27)*('Data - incidents'!$C$2:$C$952))) -> 99532 | D27: =IF(SUMPRODUCT(('Data - incidents'!$A$2:$A$952=D$3)*('Data - incidents'!$B$2:$B$952=$A27)*('Data - incidents'!$C$2:$C$952))=0,"..",SUMPRODUCT(('Data - incidents'!$A$2:$A$952=D$3)*('Data - incidents'!$B$2:$B$952=$A27)*('Data - incidents'!$C$2:$C$952))) -> 37427 | E27: =IF(OR(D27="..",C27="..",B27=".."),"..",SUM(B27:D27)) -> 759456 | F27: =IF(OR(B27="..",K27=".."),"..",(1000000*B27)/K27) -> 10900.65212 | G27: =IF(OR(C27="..",L27=".."),"..",(1000000*C27)/L27) -> 18307.76588 | H27: =IF(OR(D27="..",M27=".."),"..",(1000000*D27)/M27) -> 11951.39865 | I27: =IF(OR(E27="..",N27=".."),"..",(1000000*E27)/N27) -> 11563.92273 | K27: =IF(SUMPRODUCT(('Data - population'!$B$2:$B$1001=FIRE0101_working!$A27)*('Data - population'!$C$2:$C$1001=FIRE0101_working!F$3)*('Data - population'!$D$2:$D$1001))=0,"..",SUMPRODUCT(('Data - population'!$B$2:$B$1001=FIRE0101_working!$A27)*('Data - population'!$C$2:$C$1001=FIRE0101_working!F$3)*('Data - population'!$D$2:$D$1001))) -> 57106400 | L27: =IF(SUMPRODUCT(('Data - population'!$B$2:$B$1001=FIRE0101_working!$A27)*('Data - population'!$C$2:$C$1001=FIRE0101_working!G$3)*('Data - population'!$D$2:$D$1001))=0,"..",SUMPRODUCT(('Data - population'!$B$2:$B$1001=FIRE0101_working!$A27)*('Data - population'!$C$2:$C$1001=FIRE0101_working!G$3)*('Data - population'!$D$2:$D$1001))) -> 5436600 | M27: =IF(SUMPRODUCT(('Data - population'!$B$2:$B$1001=FIRE0101_working!$A27)*('Data - population'!$C$2:$C$1001=FIRE0101_working!H$3)*('Data - population'!$D$2:$D$1001))=0,"..",SUMPRODUCT(('Data - population'!$B$2:$B$1001=FIRE0101_working!$A27)*('Data - population'!$C$2:$C$1001=FIRE0101_working!H$3)*('Data - population'!$D$2:$D$1001))) -> 3131600 | N27: =IF(SUMPRODUCT(('Data - population'!$B$2:$B$1001=FIRE0101_working!$A27)*('Data - population'!$C$2:$C$1001=FIRE0101_working!I$3)*('Data - population'!$D$2:$D$1001))=0,"..",SUMPRODUCT(('Data - population'!$B$2:$B$1001=FIRE0101_working!$A27)*('Data - population'!$C$2:$C$1001=FIRE0101_working!I$3)*('Data - population'!$D$2:$D$1001))) -> 65674600 | O27: =K27+L27+M27-N27 -> 0

Sheet FIRE0101
A1: FIRE STATISTICS TABLE 0101: Incidents attended1 by fire and rescue services by nation and population2
C2: Total incidents1 | G2: Total incidents per 1 million people2
A3: Year | B3: England3 | C3: Scotland4 | D3: Wales5,6 | E3: Great Britain | F3: England3 | G3: Scotland4 | H3: Wales5,6 | I3: Great Britain
A4: 1999/00 | B4: =IF(FIRE0101_working!B4="..","..",ROUND(FIRE0101_working!B4,0)) -> 929573 | C4: =IF(FIRE0101_working!C4="..","..",ROUND(FIRE0101_working!C4,0)) -> .. | D4: =IF(FIRE0101_working!D4="..","..",ROUND(FIRE0101_working!D4,0)) -> .. | E4: =IF(FIRE0101_working!E4="..","..",ROUND(FIRE0101_working!E4,0)) -> .. | F4: =IF(FIRE0101_working!F4="..","..",ROUND(FIRE0101_working!F4,0)) -> 18958 | G4: =IF(FIRE0101_working!G4="..","..",ROUND(FIRE0101_working!G4,0)) -> .. | H4: =IF(FIRE0101_working!H4="..","..",ROUND(FIRE0101_working!H4,0)) -> .. | I4: =IF(FIRE0101_working!I4="..","..",ROUND(FIRE0101_working!I4,0)) -> ..
A5: 2000/01 | B5: =IF(FIRE0101_working!B5="..","..",ROUND(FIRE0101_working!B5,0)) -> 912741 | C5: =IF(FIRE0101_working!C5="..","..",ROUND(FIRE0101_working!C5,0)) -> .. | D5: =IF(FIRE0101_working!D5="..","..",ROUND(FIRE0101_working!D5,0)) -> .. | E5: =IF(FIRE0101_working!E5="..","..",ROUND(FIRE0101_working!E5,0)) -> .. | F5: =IF(FIRE0101_working!F5="..","..",ROUND(FIRE0101_working!F5,0)) -> 18539 | G5: =IF(FIRE0101_working!G5="..","..",ROUND(FIRE0101_working!G5,0)) -> .. | H5: =IF(FIRE0101_working!H5="..","..",ROUND(FIRE0101_working!H5,0)) -> .. | I5: =IF(FIRE0101_working!I5="..","..",ROUND(FIRE0101_working!I5,0)) -> ..
A6: 2001/02 | B6: =IF(FIRE0101_working!B6="..","..",ROUND(FIRE0101_working!B6,0)) -> 990793 | C6: =IF(FIRE0101_working!C6="..","..",ROUND(FIRE0101_working!C6,0)) -> .. | D6: =IF(FIRE0101_working!D6="..","..",ROUND(FIRE0101_working!D6,0)) -> 63907 | E6: =IF(FIRE0101_working!E6="..","..",ROUND(FIRE0101_working!E6,0)) -> .. | F6: =IF(FIRE0101_working!F6="..","..",ROUND(FIRE0101_working!F6,0)) -> 20036 | G6: =IF(FIRE0101_working!G6="..","..",ROUND(FIRE0101_working!G6,0)) -> .. | H6: =IF(FIRE0101_working!H6="..","..",ROUND(FIRE0101_working!H6,0)) -> 21960 | I6: =IF(FIRE0101_working!I6="..","..",ROUND(FIRE0101_working!I6,0)) -> ..
A7: 2002/03 | B7: =IF(FIRE0101_working!B7="..","..",ROUND(FIRE0101_working!B7,0)) -> 958142 | C7: =IF(FIRE0101_working!C7="..","..",ROUND(FIRE0101_working!C7,0)) -> .. | D7: =IF(FIRE0101_working!D7="..","..",ROUND(FIRE0101_working!D7,0)) -> 62540 | E7: =IF(FIRE0101_working!E7="..","..",ROUND(FIRE0101_working!E7,0)) -> .. | F7: =IF(FIRE0101_working!F7="..","..",ROUND(FIRE0101_working!F7,0)) -> 19287 | G7: =IF(FIRE0101_working!G7="..","..",ROUND(FIRE0101_working!G7,0)) -> .. | H7: =IF(FIRE0101_working!H7="..","..",ROUND(FIRE0101_working!H7,0)) -> 21397 | I7: =IF(FIRE0101_working!I7="..","..",ROUND(FIRE0101_working!I7,0)) -> ..
A8: 2003/04 | B8: =IF(FIRE0101_working!B8="..","..",ROUND(FIRE0101_working!B8,0)) -> 1016028 | C8: =IF(FIRE0101_working!C8="..","..",ROUND(FIRE0101_working!C8,0)) -> .. | D8: =IF(FIRE0101_working!D8="..","..",ROUND(FIRE0101_working!D8,0)) -> 63832 | E8: =IF(FIRE0101_working!E8="..","..",ROUND(FIRE0101_working!E8,0)) -> .. | F8: =IF(FIRE0101_working!F8="..","..",ROUND(FIRE0101_working!F8,0)) -> 20351 | G8: =IF(FIRE0101_working!G8="..","..",ROUND(FIRE0101_working!G8,0)) -> .. | H8: =IF(FIRE0101_working!H8="..","..",ROUND(FIRE0101_working!H8,0)) -> 21729 | I8: =IF(FIRE0101_working!I8="..","..",ROUND(FIRE0101_working!I8,0)) -> ..
A9: 2004/05 | B9: =IF(FIRE0101_working!B9="..","..",ROUND(FIRE0101_working!B9,0)) -> 861384 | C9: =IF(FIRE0101_working!C9="..","..",ROUND(FIRE0101_working!C9,0)) -> .. | D9: =IF(FIRE0101_working!D9="..","..",ROUND(FIRE0101_working!D9,0)) -> 52866 | E9: =IF(FIRE0101_working!E9="..","..",ROUND(FIRE0101_working!E9,0)) -> .. | F9: =IF(FIRE0101_working!F9="..","..",ROUND(FIRE0101_working!F9,0)) -> 17161 | G9: =IF(FIRE0101_working!G9="..","..",ROUND(FIRE0101_working!G9,0)) -> .. | H9: =IF(FIRE0101_working!H9="..","..",ROUND(FIRE0101_working!H9,0)) -> 17876 | I9: =IF(FIRE0101_working!I9="..","..",ROUND(FIRE0101_working!I9,0)) -> ..
A10: 2005/06 | B10: =IF(FIRE0101_working!B10="..","..",ROUND(FIRE0101_working!B10,0)) -> 843734 | C10: =IF(FIRE0101_working!C10="..","..",ROUND(FIRE0101_working!C10,0)) -> .. | D10: =IF(FIRE0101_working!D10="..","..",ROUND(FIRE0101_working!D10,0)) -> 52485 | E10: =IF(FIRE0101_working!E10="..","..",ROUND(FIRE0101_working!E10,0)) -> .. | F10: =IF(FIRE0101_working!F10="..","..",ROUND(FIRE0101_working!F10,0)) -> 16673 | G10: =IF(FIRE0101_working!G10="..","..",ROUND(FIRE0101_working!G10,0)) -> .. | H10: =IF(FIRE0101_working!H10="..","..",ROUND(FIRE0101_working!H10,0)) -> 17676 | I10: =IF(FIRE0101_working!I10="..","..",ROUND(FIRE0101_working!I10,0)) -> ..
A11: 2006/07 | B11: =IF(FIRE0101_working!B11="..","..",ROUND(FIRE0101_working!B11,0)) -> 854371 | C11: =IF(FIRE0101_working!C11="..","..",ROUND(FIRE0101_working!C11,0)) -> .. | D11: =IF(FIRE0101_working!D11="..","..",ROUND(FIRE0101_working!D11,0)) -> 56675 | E11: =IF(FIRE0101_working!E11="..","..",ROUND(FIRE0101_working!E11,0)) -> .. | F11: =IF(FIRE0101_working!F11="..","..",ROUND(FIRE0101_working!F11,0)) -> 16764 | G11: =IF(FIRE0101_working!G11="..","..",ROUND(FIRE0101_working!G11,0)) -> .. | H11: =IF(FIRE0101_working!H11="..","..",ROUND(FIRE0101_working!H11,0)) -> 18982 | I11: =IF(FIRE0101_working!I11="..","..",ROUND(FIRE0101_working!I11,0)) -> ..
A12: 2007/08 | B12: =IF(FIRE0101_working!B12="..","..",ROUND(FIRE0101_working!B12,0)) -> 791746 | C12: =IF(FIRE0101_working!C12="..","..",ROUND(FIRE0101_working!C12,0)) -> .. | D12: =IF(FIRE0101_working!D12="..","..",ROUND(FIRE0101_working!D12,0)) -> 55086 | E12: =IF(FIRE0101_working!E12="..","..",ROUND(FIRE0101_working!E12,0)) -> .. | F12: =IF(FIRE0101_working!F12="..","..",ROUND(FIRE0101_working!F12,0)) -> 15409 | G12: =IF(FIRE0101_working!G12="..","..",ROUND(FIRE0101_working!G12,0)) -> .. | H12: =IF(FIRE0101_working!H12="..","..",ROUND(FIRE0101_working!H12,0)) -> 18324 | I12: =IF(FIRE0101_working!I12="..","..",ROUND(FIRE0101_working!I12,0)) -> ..
A13: 2008/09 | B13: =IF(FIRE0101_working!B13="..","..",ROUND(FIRE0101_working!B13,0)) -> 717805 | C13: =IF(FIRE0101_working!C13="..","..",ROUND(FIRE0101_working!C13,0)) -> .. | D13: =IF(FIRE0101_working!D13="..","..",ROUND(FIRE0101_working!D13,0)) -> 49293 | E13: =IF(FIRE0101_working!E13="..","..",ROUND(FIRE0101_working!E13,0)) -> .. | F13: =IF(FIRE0101_working!F13="..","..",ROUND(FIRE0101_working!F13,0)) -> 13853 | G13: =IF(FIRE0101_working!G13="..","..",ROUND(FIRE0101_working!G13,0)) -> .. | H13: =IF(FIRE0101_working!H13="..","..",ROUND(FIRE0101_working!H13,0)) -> 16290 | I13: =IF(FIRE0101_working!I13="..","..",ROUND(FIRE0101_working!I13,0)) -> ..
A14: 2009/10 | B14: =IF(FIRE0101_working!B14="..","..",ROUND(FIRE0101_working!B14,0)) -> 680634 | C14: =IF(FIRE0101_working!C14="..","..",ROUND(FIRE0101_working!C14,0)) -> 103820 | D14: =IF(FIRE0101_working!D14="..","..",ROUND(FIRE0101_working!D14,0)) -> 46341 | E14: =IF(FIRE0101_working!E14="..","..",ROUND(FIRE0101_working!E14,0)) -> 830795 | F14: =IF(FIRE0101_working!F14="..","..",ROUND(FIRE0101_working!F14,0)) -> 13040 | G14: =IF(FIRE0101_working!G14="..","..",ROUND(FIRE0101_working!G14,0)) -> 19844 | H14: =IF(FIRE0101_working!H14="..","..",ROUND(FIRE0101_working!H14,0)) -> 15249 | I14: =IF(FIRE0101_working!I14="..","..",ROUND(FIRE0101_working!I14,0)) -> 13740
A15: 2010/11 | B15: =IF(FIRE0101_working!B15="..","..",ROUND(FIRE0101_working!B15,0)) -> 647360 | C15: =IF(FIRE0101_working!C15="..","..",ROUND(FIRE0101_working!C15,0)) -> 101432 | D15: =IF(FIRE0101_working!D15="..","..",ROUND(FIRE0101_working!D15,0)) -> 46881 | E15: =IF(FIRE0101_working!E15="..","..",ROUND(FIRE0101_working!E15,0)) -> 795673 | F15: =IF(FIRE0101_working!F15="..","..",ROUND(FIRE0101_working!F15,0)) -> 12297 | G15: =IF(FIRE0101_working!G15="..","..",ROUND(FIRE0101_working!G15,0)) -> 19276 | H15: =IF(FIRE0101_working!H15="..","..",ROUND(FIRE0101_working!H15,0)) -> 15371 | I15: =IF(FIRE0101_working!I15="..","..",ROUND(FIRE0101_working!I15,0)) -> 13054
A16: 2011/12 | B16: =IF(FIRE0101_working!B16="..","..",ROUND(FIRE0101_working!B16,0)) -> 606941 | C16: =IF(FIRE0101_working!C16="..","..",ROUND(FIRE0101_working!C16,0)) -> 91566 | D16: =IF(FIRE0101_working!D16="..","..",ROUND(FIRE0101_working!D16,0)) -> 39996 | E16: =IF(FIRE0101_working!E16="..","..",ROUND(FIRE0101_working!E16,0)) -> 738503 | F16: =IF(FIRE0101_working!F16="..","..",ROUND(FIRE0101_working!F16,0)) -> 11429 | G16: =IF(FIRE0101_working!G16="..","..",ROUND(FIRE0101_working!G16,0)) -> 17277 | H16: =IF(FIRE0101_working!H16="..","..",ROUND(FIRE0101_working!H16,0)) -> 13054 | I16: =IF(FIRE0101_working!I16="..","..",ROUND(FIRE0101_working!I16,0)) -> 12014
A17: 2012/13 | B17: =IF(FIRE0101_working!B17="..","..",ROUND(FIRE0101_working!B17,0)) -> 521324 | C17: =IF(FIRE0101_working!C17="..","..",ROUND(FIRE0101_working!C17,0)) -> 83832 | D17: =IF(FIRE0101_working!D17="..","..",ROUND(FIRE0101_working!D17,0)) -> 36251 | E17: =IF(FIRE0101_working!E17="..","..",ROUND(FIRE0101_working!E17,0)) -> 641407 | F17: =IF(FIRE0101_working!F17="..","..",ROUND(FIRE0101_working!F17,0)) -> 9743 | G17: =IF(FIRE0101_working!G17="..","..",ROUND(FIRE0101_working!G17,0)) -> 15777 | H17: =IF(FIRE0101_working!H17="..","..",ROUND(FIRE0101_working!H17,0)) -> 11805 | I17: =IF(FIRE0101_working!I17="..","..",ROUND(FIRE0101_working!I17,0)) -> 10363
A18: 2013/14 | B18: =IF(FIRE0101_working!B18="..","..",ROUND(FIRE0101_working!B18,0)) -> 526895 | C18: =IF(FIRE0101_working!C18="..","..",ROUND(FIRE0101_working!C18,0)) -> 84882 | D18: =IF(FIRE0101_working!D18="..","..",ROUND(FIRE0101_working!D18,0)) -> 38599 | E18: =IF(FIRE0101_working!E18="..","..",ROUND(FIRE0101_working!E18,0)) -> 650376 | F18: =IF(FIRE0101_working!F18="..","..",ROUND(FIRE0101_working!F18,0)) -> 9772 | G18: =IF(FIRE0101_working!G18="..","..",ROUND(FIRE0101_working!G18,0)) -> 15932 | H18: =IF(FIRE0101_working!H18="..","..",ROUND(FIRE0101_working!H18,0)) -> 12568 | I18: =IF(FIRE0101_working!I18="..","..",ROUND(FIRE0101_working!I18,0)) -> 10437
A19: 2014/15 | B19: =IF(FIRE0101_working!B19="..","..",ROUND(FIRE0101_working!B19,0)) -> 496277 | C19: =IF(FIRE0101_working!C19="..","..",ROUND(FIRE0101_working!C19,0)) -> 85050 | D19: =IF(FIRE0101_working!D19="..","..",ROUND(FIRE0101_working!D19,0)) -> 36425 | E19: =IF(FIRE0101_working!E19="..","..",ROUND(FIRE0101_working!E19,0)) -> 617752 | F19: =IF(FIRE0101_working!F19="..","..",ROUND(FIRE0101_working!F19,0)) -> 9128 | G19: =IF(FIRE0101_working!G19="..","..",ROUND(FIRE0101_working!G19,0)) -> 15904 | H19: =IF(FIRE0101_working!H19="..","..",ROUND(FIRE0101_working!H19,0)) -> 11850 | I19: =IF(FIRE0101_working!I19="..","..",ROUND(FIRE0101_working!I19,0)) -> 9838
A20: 2015/16 | B20: =IF(FIRE0101_working!B20="..","..",ROUND(FIRE0101_working!B20,0)) -> 529716 | C20: =IF(FIRE0101_working!C20="..","..",ROUND(FIRE0101_working!C20,0)) -> 88869 | D20: =IF(FIRE0101_working!D20="..","..",ROUND(FIRE0101_working!D20,0)) -> 36750 | E20: =IF(FIRE0101_working!E20="..","..",ROUND(FIRE0101_working!E20,0)) -> 655335 | F20: =IF(FIRE0101_working!F20="..","..",ROUND(FIRE0101_working!F20,0)) -> 9665 | G20: =IF(FIRE0101_working!G20="..","..",ROUND(FIRE0101_working!G20,0)) -> 16540 | H20: =IF(FIRE0101_working!H20="..","..",ROUND(FIRE0101_working!H20,0)) -> 11960 | I20: =IF(FIRE0101_working!I20="..","..",ROUND(FIRE0101_working!I20,0)) -> 10360
A21: 2016/17 | B21: =IF(FIRE0101_working!B21="..","..",ROUND(FIRE0101_working!B21,0)) -> 560775 | C21: =IF(FIRE0101_working!C21="..","..",ROUND(FIRE0101_working!C21,0)) -> 91261 | D21: =IF(FIRE0101_working!D21="..","..",ROUND(FIRE0101_working!D21,0)) -> 37216 | E21: =IF(FIRE0101_working!E21="..","..",ROUND(FIRE0101_working!E21,0)) -> 689252 | F21: =IF(FIRE0101_working!F21="..","..",ROUND(FIRE0101_working!F21,0)) -> 10143 | G21: =IF(FIRE0101_working!G21="..","..",ROUND(FIRE0101_working!G21,0)) -> 16885 | H21: =IF(FIRE0101_working!H21="..","..",ROUND(FIRE0101_working!H21,0)) -> 12094 | I21: =IF(FIRE0101_working!I21="..","..",ROUND(FIRE0101_working!I21,0)) -> 10808
A22: 2017/18 | B22: =IF(FIRE0101_working!B22="..","..",ROUND(FIRE0101_working!B22,0)) -> 566217 | C22: =IF(FIRE0101_working!C22="..","..",ROUND(FIRE0101_working!C22,0)) -> 91901 | D22: =IF(FIRE0101_working!D22="..","..",ROUND(FIRE0101_working!D22,0)) -> 36768 | E22: =IF(FIRE0101_working!E22="..","..",ROUND(FIRE0101_working!E22,0)) -> 694886 | F22: =IF(FIRE0101_working!F22="..","..",ROUND(FIRE0101_working!F22,0)) -> 10180 | G22: =IF(FIRE0101_working!G22="..","..",ROUND(FIRE0101_working!G22,0)) -> 16941 | H22: =IF(FIRE0101_working!H22="..","..",ROUND(FIRE0101_working!H22,0)) -> 11932 | I22: =IF(FIRE0101_working!I22="..","..",ROUND(FIRE0101_working!I22,0)) -> 10836
A23: 2018/19 | B23: =IF(FIRE0101_working!B23="..","..",ROUND(FIRE0101_working!B23,0)) -> 576594 | C23: =IF(FIRE0101_working!C23="..","..",ROUND(FIRE0101_working!C23,0)) -> 92748 | D23: =IF(FIRE0101_working!D23="..","..",ROUND(FIRE0101_working!D23,0)) -> 36674 | E23: =IF(FIRE0101_working!E23="..","..",ROUND(FIRE0101_working!E23,0)) -> 706016 | F23: =IF(FIRE0101_working!F23="..","..",ROUND(FIRE0101_working!F23,0)) -> 10310 | G23: =IF(FIRE0101_working!G23="..","..",ROUND(FIRE0101_working!G23,0)) -> 17055 | H23: =IF(FIRE0101_working!H23="..","..",ROUND(FIRE0101_working!H23,0)) -> 11892 | I23: =IF(FIRE0101_working!I23="..","..",ROUND(FIRE0101_working!I23,0)) -> 10955
A24: 2019/20 | B24: =IF(FIRE0101_working!B24="..","..",ROUND(FIRE0101_working!B24,0)) -> 558033 | C24: =IF(FIRE0101_working!C24="..","..",ROUND(FIRE0101_working!C24,0)) -> 92075 | D24: =IF(FIRE0101_working!D24="..","..",ROUND(FIRE0101_working!D24,0)) -> 34993 | E24: =IF(FIRE0101_working!E24="..","..",ROUND(FIRE0101_working!E24,0)) -> 685101 | F24: =IF(FIRE0101_working!F24="..","..",ROUND(FIRE0101_working!F24,0)) -> 9924 | G24: =IF(FIRE0101_working!G24="..","..",ROUND(FIRE0101_working!G24,0)) -> 16853 | H24: =IF(FIRE0101_working!H24="..","..",ROUND(FIRE0101_working!H24,0)) -> 11333 | I24: =IF(FIRE0101_working!I24="..","..",ROUND(FIRE0101_working!I24,0)) -> 10576
A25: 2020/21 | B25: =IF(FIRE0101_working!B25="..","..",ROUND(FIRE0101_working!B25,0)) -> 518321 | C25: =IF(FIRE0101_working!C25="..","..",ROUND(FIRE0101_working!C25,0)) -> 85613 | D25: =IF(FIRE0101_working!D25="..","..",ROUND(FIRE0101_working!D25,0)) -> 32225 | E25: =IF(FIRE0101_working!E25="..","..",ROUND(FIRE0101_working!E25,0)) -> 636159 | F25: =IF(FIRE0101_working!F25="..","..",ROUND(FIRE0101_working!F25,0)) -> 9202 | G25: =IF(FIRE0101_working!G25="..","..",ROUND(FIRE0101_working!G25,0)) -> 15663 | H25: =IF(FIRE0101_working!H25="..","..",ROUND(FIRE0101_working!H25,0)) -> 10380 | I25: =IF(FIRE0101_working!I25="..","..",ROUND(FIRE0101_working!I25,0)) -> 9803
A26: 2021/22 | B26: =IF(FIRE0101_working!B26="..","..",ROUND(FIRE0101_working!B26,0)) -> 577187 | C26: =IF(FIRE0101_working!C26="..","..",ROUND(FIRE0101_working!C26,0)) -> 95734 | D26: =IF(FIRE0101_working!D26="..","..",ROUND(FIRE0101_working!D26,0)) -> 34735 | E26: =IF(FIRE0101_working!E26="..","..",ROUND(FIRE0101_working!E26,0)) -> 707656 | F26: =IF(FIRE0101_working!F26="..","..",ROUND(FIRE0101_working!F26,0)) -> 10206 | G26: =IF(FIRE0101_working!G26="..","..",ROUND(FIRE0101_working!G26,0)) -> 17470 | H26: =IF(FIRE0101_working!H26="..","..",ROUND(FIRE0101_working!H26,0)) -> 11185 | I26: =IF(FIRE0101_working!I26="..","..",ROUND(FIRE0101_working!I26,0)) -> 10864
A27: 2022/23 | B27: =IF(FIRE0101_working!B27="..","..",ROUND(FIRE0101_working!B27,0)) -> 622497 | C27: =IF(FIRE0101_working!C27="..","..",ROUND(FIRE0101_working!C27,0)) -> 99532 | D27: =IF(FIRE0101_working!D27="..","..",ROUND(FIRE0101_working!D27,0)) -> 37427 | E27: =IF(FIRE0101_working!E27="..","..",ROUND(FIRE0101_working!E27,0)) -> 759456 | F27: =IF(FIRE0101_working!F27="..","..",ROUND(FIRE0101_working!F27,0)) -> 10901 | G27: =IF(FIRE0101_working!G27="..","..",ROUND(FIRE0101_working!G27,0)) -> 18308 | H27: =IF(FIRE0101_working!H27="..","..",ROUND(FIRE0101_working!H27,0)) -> 11951 | I27: =IF(FIRE0101_working!I27="..","..",ROUND(FIRE0101_working!I27,0)) -> 11564
A28: Footnotes
A29: 1 Incidents attended includes fires, fire false alarms and non-fire incidents (special service incidents).
A30: 2 Using the Office for National Statistics's mid year population estimates that fall in the relevant financial year. At the time of publication, the mid-2022 population estimate for Scotland was not yet available. The 2022/23 data for Scotland is therefore based on the population estimate in the 2022 Scotland Census - accessible here:
A31: Scotland's Census 2022 - Rounded population estimates | Scotland's Census (scotlandscensus.gov.uk)
A32: 3 At the time of publication the rebate mid-year estimates have been used for England - Which can be accessible here | H32: https://www.ons.gov.uk/peoplepopulationandcommunity/populationandmigration/populationestimates/datasets/estimatesofthepopulationforenglandandwales
A33: Figures for England are from the latest statistical release, published by the Home Office on 25 January 2024. The data in this table are consistent with records that reached the IRS by 13 November2023.
A34: 4 Figures for Scotland are from the latest statistical release, published by the Scottish Fire and Rescue Service on 31 Ocotber 2023. This included data received by 25 September 2023.
A35: 5 Figures for Wales are from the latest statistical release, published by the Welsh Government on 26 Ocotber 2023. This included data received by 22 August 2023.
A36: 6 Figures for Wales from 2001/02 to 2003/04 were published by DCLG. From 2004/05, fire was devolved and from 2004/05 to 2008/09 data are taken from the annual Operational data collection;
A37: 2009/10 data onwards are taken from the IRS. Data from 2009/10 onwards have been adjusted to include special service incident false alarms; data previously published for 2004/05 to 2008/09 have not been amended but do include special service incident false alarms.
A38: Note on 2009/10:
A39: Before 1 April 2009 fire incident statistics were based on the FDR1 paper form. This approach means the statistics for before this date can be less robust,
A40: especially for non-fire incidents which were based on a sample of returns. Since this date the statistics are based on an online collection tool, the Incident Recording System (IRS).
A41: General note:
A42: Fire data are collected by the Incident Recording System (IRS) which collects information on all incidents attended by fire and rescue services.
A43: For a variety of reasons some records take longer than others for fire and rescue services to upload to the IRS and therefore totals are constantly being amended (by relatively small numbers).
A44: .. denotes data not available.
A45: The full set of fire statistics releases, tables and guidance can be found on our landing page, here-
A46: https://www.gov.uk/government/collections/fire-statistics
A47: The statistics in this table for England and Wales are National Statistics. The Scottish Fire and Rescue Service is working towards achieving UK Statistics Authority accreditation.
A48: Source: Home Office Incident Recording System
A49: Contact: FireStatistics@homeoffice.gov.uk
A50: Contact: stats.inclusion@gov.wales
A51: Contact: National.Statistics@firescotland.gov.uk
A52: end of table
